Workbook

Sheet Notes
B2: Mental Health Friends and Family Test (FFT) data - December 2018 | H2: Show data for:

Sheet Summary
B3: FFT | C3: Number of organisations submitting | D3: Total responses to date | E3: Responses | G3: Score (% recommend) | I3: Score (% not recommend)
C4: 2018-12-01 | D4: 2018-12-01 | E4: 2018-12-01 | F4: 2018-11-26 | G4: 2018-12-01 | H4: 2018-11-26 | I4: 2018-12-01 | J4: 2018-11-26
B5: Mental Health Overall | C5: 75 | D5: 887000 | E5: 17577 | F5: 22587 | G5: 0.8897422768 | H5: 0.8948952938 | I5: 0.04101951414 | J5: 0.03577278966
B6: Primary Care | C6: 43 | D6: 152239 | E6: 3230 | F6: 4573 | G6: 0.9476780186 | H6: 0.945768642 | I6: 0.01795665635 | J6: 0.01946205992
B7: Secondary Care Community Services | C7: 57 | D7: 329253 | E7: 6565 | F7: 8142 | G7: 0.8955064737 | H7: 0.9014984033 | I7: 0.03701447068 | J7: 0.03119626627
B8: Acute Services | C8: 53 | D8: 144031 | E8: 2629 | F8: 3361 | G8: 0.8295930011 | H8: 0.8283249033 | I8: 0.07797641689 | J8: 0.07140731925
B9: Specialist Services | C9: 43 | D9: 69359 | E9: 1393 | F9: 1989 | G9: 0.8872936109 | H9: 0.9120160885 | I9: 0.04666188083 | J9: 0.02664655606
B10: Secure and Forensic Services | C10: 17 | D10: 33120 | E10: 810 | F10: 739 | G10: 0.8086419753 | H10: 0.8092016238 | I10: 0.07530864198 | J10: 0.07036535859
B11: Child and Adolescent Mental Health Services | C11: 47 | D11: 104317 | E11: 2165 | F11: 2598 | G11: 0.8817551963 | H11: 0.8745188607 | I11: 0.03279445727 | J11: 0.03271747498
B12: Mental Health Other | C12: 32 | D12: 54681 | E12: 785 | F12: 1185 | G12: 0.9146496815 | H12: 0.9113924051 | I12: 0.02292993631 | J12: 0.02953586498

Sheet Region (Local Office)
A3: Region (LO) Code | B3: Region (Local Office) | C3: Total Responses | D3: Total Eligible | E3: Percentage Recommended | F3: Percentage Not Recommended | G3: Breakdown of Responses | M3: Total Responses | N3: Total Eligible | O3: Percentage Recommended | P3: Percentage Not Recommended | Q3: Breakdown of Responses | W3: Total Responses | X3: Total Eligible | Y3: Percentage Recommended | Z3: Percentage Not Recommended | AA3: Breakdown of Responses
G4: Extremely Likely | H4: Likely | I4: Neither | J4: Unlikely | K4: Extremely Unlikely | L4: Don't Know | Q4: Extremely Likely | R4: Likely | S4: Neither | T4: Unlikely | U4: Extremely Unlikely | V4: Don't Know | AA4: Extremely Likely | AB4: Likely | AC4: Neither | AD4: Unlikely | AE4: Extremely Unlikely | AF4: Don't Know
B5: England (including Independent Sector Providers) | C5: 17577 | D5: 659941 | E5: 0.8897422768 | F5: 0.04101951414 | G5: 10919 | H5: 4720 | I5: 773 | J5: 326 | K5: 395 | L5: 444 | M5: =SUM(M8:M22) -> 17577 | N5: =SUM(N8:N22) -> 659941 | O5: =SUM(Q5:R5)/M5 -> 0.8897422768 | P5: =SUM(T5:U5)/M5 -> 0.04101951414 | Q5: 10919 | R5: 4720 | S5: 773 | T5: 326 | U5: 395 | V5: 444
B6: England (excluding Independent Sector Providers) | C6: 16842 | D6: 646751 | E6: 0.8884336777 | F6: 0.04138463365 | G6: 10417 | H6: 4546 | I6: 745 | J6: 312 | K6: 385 | L6: 437 | M6: =SUM(M8:M21) -> 16842 | N6: =SUM(N8:N21) -> 646751 | O6: 0.8884336777 | P6: 0.04138463365 | Q6: 10417 | R6: 4546 | S6: 745 | T6: 312 | U6: 385 | V6: 437
B7: Selection (excluding suppressed data) | C7: =SUBTOTAL(9,C8:C34) -> 17577 | D7: =SUBTOTAL(9,D8:D34) -> 659941 | E7: =IFERROR((G7+H7)/SUM(G7:L7), "-") -> 0.8897422768 | F7: =IFERROR((J7+K7)/SUM(G7:L7), "-") -> 0.04101951414 | G7: =SUBTOTAL(9,G8:G34) -> 10919 | H7: 4720 | I7: 773 | J7: 326 | K7: 395 | L7: 444 | M7: =SUMIF(M8:M22,"<>*",C8:C22) -> 17577 | N7: =SUMIF(N8:N22,"<>*",D8:D22) -> 659941 | O7: 0.8897422768 | P7: 0.04101951414 | Q7: 10919 | R7: 4720 | S7: 773 | T7: 326 | U7: 395 | V7: 444
A8: Q72 | B8: NHS England Yorkshire & Humber | C8: 925 | D8: 58494 | E8: 0.9048648649 | F8: 0.04972972973 | G8: 677 | H8: 160 | I8: 22 | J8: 14 | K8: 32 | L8: 20 | M8: =VLOOKUP($A8,[1]Sheet1!$A$29:$I$44,8,FALSE) -> 925 | N8: =VLOOKUP($A8,[1]Sheet1!$A$29:$I$44,9,FALSE) -> 58494 | O8: =SUM(Q8:R8)/M8 -> 0.9048648649 | P8: =SUM(T8:U8)/M8 -> 0.04972972973 | Q8: =VLOOKUP($A8,[1]Sheet1!$A$29:$I$44,2,FALSE) -> 677 | R8: =VLOOKUP($A8,[1]Sheet1!$A$29:$I$44,3,FALSE) -> 160 | S8: =VLOOKUP($A8,[1]Sheet1!$A$29:$I$44,4,FALSE) -> 22 | T8: =VLOOKUP($A8,[1]Sheet1!$A$29:$I$44,5,FALSE) -> 14 | U8: =VLOOKUP($A8,[1]Sheet1!$A$29:$I$44,6,FALSE) -> 32 | V8: =VLOOKUP($A8,[1]Sheet1!$A$29:$I$44,7,FALSE) -> 20
A9: Q74 | B9: NHS England Cumbria & North East | C9: 2486 | D9: 107769 | E9: 0.8753016895 | F9: 0.05108608206 | G9: 1418 | H9: 758 | I9: 122 | J9: 58 | K9: 69 | L9: 61 | M9: =VLOOKUP($A9,[1]Sheet1!$A$29:$I$44,8,FALSE) -> 2486 | N9: =VLOOKUP($A9,[1]Sheet1!$A$29:$I$44,9,FALSE) -> 107769 | O9: =SUM(Q9:R9)/M9 -> 0.8753016895 | P9: =SUM(T9:U9)/M9 -> 0.05108608206 | Q9: =VLOOKUP($A9,[1]Sheet1!$A$29:$I$44,2,FALSE) -> 1418 | R9: =VLOOKUP($A9,[1]Sheet1!$A$29:$I$44,3,FALSE) -> 758 | S9: =VLOOKUP($A9,[1]Sheet1!$A$29:$I$44,4,FALSE) -> 122 | T9: =VLOOKUP($A9,[1]Sheet1!$A$29:$I$44,5,FALSE) -> 58 | U9: =VLOOKUP($A9,[1]Sheet1!$A$29:$I$44,6,FALSE) -> 69 | V9: =VLOOKUP($A9,[1]Sheet1!$A$29:$I$44,7,FALSE) -> 61
A10: Q75 | B10: NHS England Cheshire & Merseyside | C10: 717 | D10: 32249 | E10: 0.9191073919 | F10: 0.01952580195 | G10: 403 | H10: 256 | I10: 35 | J10: 7 | K10: 7 | L10: 9 | M10: =VLOOKUP($A10,[1]Sheet1!$A$29:$I$44,8,FALSE) -> 717 | N10: =VLOOKUP($A10,[1]Sheet1!$A$29:$I$44,9,FALSE) -> 32249 | O10: 0.9191073919 | P10: 0.01952580195 | Q10: =VLOOKUP($A10,[1]Sheet1!$A$29:$I$44,2,FALSE) -> 403 | R10: =VLOOKUP($A10,[1]Sheet1!$A$29:$I$44,3,FALSE) -> 256 | S10: =VLOOKUP($A10,[1]Sheet1!$A$29:$I$44,4,FALSE) -> 35 | T10: =VLOOKUP($A10,[1]Sheet1!$A$29:$I$44,5,FALSE) -> 7 | U10: =VLOOKUP($A10,[1]Sheet1!$A$29:$I$44,6,FALSE) -> 7 | V10: =VLOOKUP($A10,[1]Sheet1!$A$29:$I$44,7,FALSE) -> 9
A11: Q83 | B11: NHS England Greater Manchester | C11: 479 | D11: 20938 | E11: 0.8141962422 | F11: 0.108559499 | G11: 314 | H11: 76 | I11: 21 | J11: 35 | K11: 17 | L11: 16 | M11: =VLOOKUP($A11,[1]Sheet1!$A$29:$I$44,8,FALSE) -> 479 | N11: =VLOOKUP($A11,[1]Sheet1!$A$29:$I$44,9,FALSE) -> 20938 | O11: 0.8141962422 | P11: 0.108559499 | Q11: =VLOOKUP($A11,[1]Sheet1!$A$29:$I$44,2,FALSE) -> 314 | R11: =VLOOKUP($A11,[1]Sheet1!$A$29:$I$44,3,FALSE) -> 76 | S11: =VLOOKUP($A11,[1]Sheet1!$A$29:$I$44,4,FALSE) -> 21 | T11: =VLOOKUP($A11,[1]Sheet1!$A$29:$I$44,5,FALSE) -> 35 | U11: =VLOOKUP($A11,[1]Sheet1!$A$29:$I$44,6,FALSE) -> 17 | V11: =VLOOKUP($A11,[1]Sheet1!$A$29:$I$44,7,FALSE) -> 16
A12: Q84 | B12: NHS England Lancashire | C12: 293 | D12: 26973 | E12: 0.9215017065 | F12: 0.03412969283 | G12: 188 | H12: 82 | I12: 10 | J12: 5 | K12: 5 | L12: 3 | M12: =VLOOKUP($A12,[1]Sheet1!$A$29:$I$44,8,FALSE) -> 293 | N12: =VLOOKUP($A12,[1]Sheet1!$A$29:$I$44,9,FALSE) -> 26973 | O12: 0.9215017065 | P12: 0.03412969283 | Q12: =VLOOKUP($A12,[1]Sheet1!$A$29:$I$44,2,FALSE) -> 188 | R12: =VLOOKUP($A12,[1]Sheet1!$A$29:$I$44,3,FALSE) -> 82 | S12: =VLOOKUP($A12,[1]Sheet1!$A$29:$I$44,4,FALSE) -> 10 | T12: =VLOOKUP($A12,[1]Sheet1!$A$29:$I$44,5,FALSE) -> 5 | U12: =VLOOKUP($A12,[1]Sheet1!$A$29:$I$44,6,FALSE) -> 5 | V12: =VLOOKUP($A12,[1]Sheet1!$A$29:$I$44,7,FALSE) -> 3
A13: Q76 | B13: NHS England North Midlands | C13: 797 | D13: 41894 | E13: 0.8946047679 | F13: 0.03638644918 | G13: 523 | H13: 190 | I13: 31 | J13: 12 | K13: 17 | L13: 24 | M13: =VLOOKUP($A13,[1]Sheet1!$A$29:$I$44,8,FALSE) -> 797 | N13: =VLOOKUP($A13,[1]Sheet1!$A$29:$I$44,9,FALSE) -> 41894 | O13: 0.8946047679 | P13: 0.03638644918 | Q13: =VLOOKUP($A13,[1]Sheet1!$A$29:$I$44,2,FALSE) -> 523 | R13: =VLOOKUP($A13,[1]Sheet1!$A$29:$I$44,3,FALSE) -> 190 | S13: =VLOOKUP($A13,[1]Sheet1!$A$29:$I$44,4,FALSE) -> 31 | T13: =VLOOKUP($A13,[1]Sheet1!$A$29:$I$44,5,FALSE) -> 12 | U13: =VLOOKUP($A13,[1]Sheet1!$A$29:$I$44,6,FALSE) -> 17 | V13: =VLOOKUP($A13,[1]Sheet1!$A$29:$I$44,7,FALSE) -> 24
A14: Q77 | B14: NHS England West Midlands | C14: 869 | D14: 45352 | E14: 0.8860759494 | F14: 0.0253164557 | G14: 519 | H14: 251 | I14: 38 | J14: 11 | K14: 11 | L14: 39 | M14: =VLOOKUP($A14,[1]Sheet1!$A$29:$I$44,8,FALSE) -> 869 | N14: =VLOOKUP($A14,[1]Sheet1!$A$29:$I$44,9,FALSE) -> 45352 | O14: 0.8860759494 | P14: 0.0253164557 | Q14: =VLOOKUP($A14,[1]Sheet1!$A$29:$I$44,2,FALSE) -> 519 | R14: =VLOOKUP($A14,[1]Sheet1!$A$29:$I$44,3,FALSE) -> 251 | S14: =VLOOKUP($A14,[1]Sheet1!$A$29:$I$44,4,FALSE) -> 38 | T14: =VLOOKUP($A14,[1]Sheet1!$A$29:$I$44,5,FALSE) -> 11 | U14: =VLOOKUP($A14,[1]Sheet1!$A$29:$I$44,6,FALSE) -> 11 | V14: =VLOOKUP($A14,[1]Sheet1!$A$29:$I$44,7,FALSE) -> 39
A15: Q78 | B15: NHS England Central Midlands | C15: 1614 | D15: 50850 | E15: 0.9120198265 | F15: 0.02354399009 | G15: 1023 | H15: 449 | I15: 69 | J15: 18 | K15: 20 | L15: 35 | M15: =VLOOKUP($A15,[1]Sheet1!$A$29:$I$44,8,FALSE) -> 1614 | N15: =VLOOKUP($A15,[1]Sheet1!$A$29:$I$44,9,FALSE) -> 50850 | O15: 0.9120198265 | P15: 0.02354399009 | Q15: =VLOOKUP($A15,[1]Sheet1!$A$29:$I$44,2,FALSE) -> 1023 | R15: =VLOOKUP($A15,[1]Sheet1!$A$29:$I$44,3,FALSE) -> 449 | S15: =VLOOKUP($A15,[1]Sheet1!$A$29:$I$44,4,FALSE) -> 69 | T15: =VLOOKUP($A15,[1]Sheet1!$A$29:$I$44,5,FALSE) -> 18 | U15: =VLOOKUP($A15,[1]Sheet1!$A$29:$I$44,6,FALSE) -> 20 | V15: =VLOOKUP($A15,[1]Sheet1!$A$29:$I$44,7,FALSE) -> 35
A16: Q79 | B16: NHS England East | C16: 556 | D16: 38687 | E16: 0.8902877698 | F16: 0.03776978417 | G16: 338 | H16: 157 | I16: 25 | J16: 7 | K16: 14 | L16: 15 | M16: =VLOOKUP($A16,[1]Sheet1!$A$29:$I$44,8,FALSE) -> 556 | N16: =VLOOKUP($A16,[1]Sheet1!$A$29:$I$44,9,FALSE) -> 38687 | O16: 0.8902877698 | P16: 0.03776978417 | Q16: =VLOOKUP($A16,[1]Sheet1!$A$29:$I$44,2,FALSE) -> 338 | R16: =VLOOKUP($A16,[1]Sheet1!$A$29:$I$44,3,FALSE) -> 157 | S16: =VLOOKUP($A16,[1]Sheet1!$A$29:$I$44,4,FALSE) -> 25 | T16: =VLOOKUP($A16,[1]Sheet1!$A$29:$I$44,5,FALSE) -> 7 | U16: =VLOOKUP($A16,[1]Sheet1!$A$29:$I$44,6,FALSE) -> 14 | V16: =VLOOKUP($A16,[1]Sheet1!$A$29:$I$44,7,FALSE) -> 15
A17: Q85 | B17: NHS England South West South | C17: 1046 | D17: 19972 | E17: 0.9149139579 | F17: 0.02198852772 | G17: 714 | H17: 243 | I17: 46 | J17: 5 | K17: 18 | L17: 20 | M17: =VLOOKUP($A17,[1]Sheet1!$A$29:$I$44,8,FALSE) -> 1046 | N17: =VLOOKUP($A17,[1]Sheet1!$A$29:$I$44,9,FALSE) -> 19972 | O17: 0.9149139579 | P17: 0.02198852772 | Q17: =VLOOKUP($A17,[1]Sheet1!$A$29:$I$44,2,FALSE) -> 714 | R17: =VLOOKUP($A17,[1]Sheet1!$A$29:$I$44,3,FALSE) -> 243 | S17: =VLOOKUP($A17,[1]Sheet1!$A$29:$I$44,4,FALSE) -> 46 | T17: =VLOOKUP($A17,[1]Sheet1!$A$29:$I$44,5,FALSE) -> 5 | U17: =VLOOKUP($A17,[1]Sheet1!$A$29:$I$44,6,FALSE) -> 18 | V17: =VLOOKUP($A17,[1]Sheet1!$A$29:$I$44,7,FALSE) -> 20
A18: Q86 | B18: NHS England South West North | C18: 1091 | D18: 16665 | E18: 0.8597616865 | F18: 0.04674610449 | G18: 692 | H18: 246 | I18: 59 | J18: 22 | K18: 29 | L18: 43 | M18: =VLOOKUP($A18,[1]Sheet1!$A$29:$I$44,8,FALSE) -> 1091 | N18: =VLOOKUP($A18,[1]Sheet1!$A$29:$I$44,9,FALSE) -> 16665 | O18: 0.8597616865 | P18: 0.04674610449 | Q18: =VLOOKUP($A18,[1]Sheet1!$A$29:$I$44,2,FALSE) -> 692 | R18: =VLOOKUP($A18,[1]Sheet1!$A$29:$I$44,3,FALSE) -> 246 | S18: =VLOOKUP($A18,[1]Sheet1!$A$29:$I$44,4,FALSE) -> 59 | T18: =VLOOKUP($A18,[1]Sheet1!$A$29:$I$44,5,FALSE) -> 22 | U18: =VLOOKUP($A18,[1]Sheet1!$A$29:$I$44,6,FALSE) -> 29 | V18: =VLOOKUP($A18,[1]Sheet1!$A$29:$I$44,7,FALSE) -> 43
A19: Q87 | B19: NHS England Hampshire, Isle Of Wight & Thames Valley | C19: 1520 | D19: 26030 | E19: 0.9092105263 | F19: 0.04407894737 | G19: 1019 | H19: 363 | I19: 57 | J19: 27 | K19: 40 | L19: 14 | M19: =VLOOKUP($A19,[1]Sheet1!$A$29:$I$44,8,FALSE) -> 1520 | N19: =VLOOKUP($A19,[1]Sheet1!$A$29:$I$44,9,FALSE) -> 26030 | O19: 0.9092105263 | P19: 0.04407894737 | Q19: =VLOOKUP($A19,[1]Sheet1!$A$29:$I$44,2,FALSE) -> 1019 | R19: =VLOOKUP($A19,[1]Sheet1!$A$29:$I$44,3,FALSE) -> 363 | S19: =VLOOKUP($A19,[1]Sheet1!$A$29:$I$44,4,FALSE) -> 57 | T19: =VLOOKUP($A19,[1]Sheet1!$A$29:$I$44,5,FALSE) -> 27 | U19: =VLOOKUP($A19,[1]Sheet1!$A$29:$I$44,6,FALSE) -> 40 | V19: =VLOOKUP($A19,[1]Sheet1!$A$29:$I$44,7,FALSE) -> 14
A20: Q88 | B20: NHS England Kent, Surrey & Sussex | C20: 897 | D20: 35026 | E20: 0.9141583055 | F20: 0.03344481605 | G20: 545 | H20: 275 | I20: 35 | J20: 12 | K20: 18 | L20: 12 | M20: =VLOOKUP($A20,[1]Sheet1!$A$29:$I$44,8,FALSE) -> 897 | N20: =VLOOKUP($A20,[1]Sheet1!$A$29:$I$44,9,FALSE) -> 35026 | O20: 0.9141583055 | P20: 0.03344481605 | Q20: =VLOOKUP($A20,[1]Sheet1!$A$29:$I$44,2,FALSE) -> 545 | R20: =VLOOKUP($A20,[1]Sheet1!$A$29:$I$44,3,FALSE) -> 275 | S20: =VLOOKUP($A20,[1]Sheet1!$A$29:$I$44,4,FALSE) -> 35 | T20: =VLOOKUP($A20,[1]Sheet1!$A$29:$I$44,5,FALSE) -> 12 | U20: =VLOOKUP($A20,[1]Sheet1!$A$29:$I$44,6,FALSE) -> 18 | V20: =VLOOKUP($A20,[1]Sheet1!$A$29:$I$44,7,FALSE) -> 12
A21: Q71 | B21: NHS England London | C21: 3552 | D21: 125852 | E21: 0.8682432432 | F21: 0.04701576577 | G21: 2044 | H21: 1040 | I21: 175 | J21: 79 | K21: 88 | L21: 126 | M21: =VLOOKUP($A21,[1]Sheet1!$A$29:$I$44,8,FALSE) -> 3552 | N21: =VLOOKUP($A21,[1]Sheet1!$A$29:$I$44,9,FALSE) -> 125852 | O21: 0.8682432432 | P21: 0.04701576577 | Q21: =VLOOKUP($A21,[1]Sheet1!$A$29:$I$44,2,FALSE) -> 2044 | R21: =VLOOKUP($A21,[1]Sheet1!$A$29:$I$44,3,FALSE) -> 1040 | S21: =VLOOKUP($A21,[1]Sheet1!$A$29:$I$44,4,FALSE) -> 175 | T21: =VLOOKUP($A21,[1]Sheet1!$A$29:$I$44,5,FALSE) -> 79 | U21: =VLOOKUP($A21,[1]Sheet1!$A$29:$I$44,6,FALSE) -> 88 | V21: =VLOOKUP($A21,[1]Sheet1!$A$29:$I$44,7,FALSE) -> 126
A22: IS1 | B22: Independent Sector Provider | C22: 735 | D22: 13190 | E22: 0.9197278912 | F22: 0.03265306122 | G22: 502 | H22: 174 | I22: 28 | J22: 14 | K22: 10 | L22: 7 | M22: =VLOOKUP($A22,[1]Sheet1!$A$29:$I$44,8,FALSE) -> 735 | N22: =VLOOKUP($A22,[1]Sheet1!$A$29:$I$44,9,FALSE) -> 13190 | O22: 0.9197278912 | P22: 0.03265306122 | Q22: =VLOOKUP($A22,[1]Sheet1!$A$29:$I$44,2,FALSE) -> 502 | R22: =VLOOKUP($A22,[1]Sheet1!$A$29:$I$44,3,FALSE) -> 174 | S22: =VLOOKUP($A22,[1]Sheet1!$A$29:$I$44,4,FALSE) -> 28 | T22: =VLOOKUP($A22,[1]Sheet1!$A$29:$I$44,5,FALSE) -> 14 | U22: =VLOOKUP($A22,[1]Sheet1!$A$29:$I$44,6,FALSE) -> 10 | V22: =VLOOKUP($A22,[1]Sheet1!$A$29:$I$44,7,FALSE) -> 7

Sheet Trusts
A3: Region (LO) Code | B3: Trust Code | C3: Trust Name | D3: Total Responses | E3: Total Eligible | F3: Percentage Recommended | G3: Percentage Not Recommended | H3: Breakdown of Responses | N3: Mode of Collection
H4: Extremely Likely | I4: Likely | J4: Neither | K4: Unlikely | L4: Extremely Unlikely | M4: Don't Know | N4: SMS/Text / Smartphone App | O4: Electronic tablet/kiosk at point of discharge | P4: Paper / postcard at point of discharge | Q4: Paper survey sent to the patients home | R4: Telephone survey once patient is home | S4: Online survey once patient is home | T4: Other
C5: England (including Independent Sector Providers) | D5: 17577 | E5: 659941 | F5: 0.8897422768 | G5: 0.04101951414 | H5: 10919 | I5: 4720 | J5: 773 | K5: 326 | L5: 395 | M5: 444 | N5: 362 | O5: 2785 | P5: 9599 | Q5: 1332 | R5: 731 | S5: 2128 | T5: 640
C6: England (excluding Independent Sector Providers) | D6: 16842 | E6: 646751 | F6: 0.8884336777 | G6: 0.04138463365 | H6: 10417 | I6: 4546 | J6: 745 | K6: 312 | L6: 385 | M6: 437 | N6: 358 | O6: 2775 | P6: 9091 | Q6: 1322 | R6: 731 | S6: 2051 | T6: 514
C7: Selection (excluding suppressed data) | D7: =SUBTOTAL(9,D8:D193) -> 17577 | E7: =SUBTOTAL(9,E8:E193) -> 659941 | F7: =IFERROR((H7+I7)/SUM(H7:M7), "-") -> 0.8898121799 | G7: =IFERROR((K7+L7)/SUM(H7:M7), "-") -> 0.04103585657 | H7: =SUBTOTAL(9,H8:H193) -> 10916 | I7: 4718 | J7: 771 | K7: 326 | L7: 395 | M7: 444 | N7: 362 | O7: 2779 | P7: 9598 | Q7: 1332 | R7: 731 | S7: 2128 | T7: 640
A8: Q71 | B8: RRP | C8: BARNET, ENFIELD AND HARINGEY MENTAL HEALTH NHS TRUST | D8: 726 | E8: 7895 | F8: 0.8746556474 | G8: 0.02892561983 | H8: 375 | I8: 260 | J8: 44 | K8: 11 | L8: 10 | M8: 26 | N8: 0 | O8: 59 | P8: 0 | Q8: 0 | R8: 0 | S8: 667 | T8: 0
A9: Q71 | B9: TAF | C9: CAMDEN AND ISLINGTON NHS FOUNDATION TRUST | D9: 137 | E9: 1992 | F9: 0.897810219 | G9: 0.03649635036 | H9: 81 | I9: 42 | J9: 9 | K9: 2 | L9: 3 | M9: 0 | N9: 0 | O9: 20 | P9: 92 | Q9: 19 | R9: 0 | S9: 6 | T9: 0
A10: Q71 | B10: RV3 | C10: CENTRAL AND NORTH WEST LONDON NHS FOUNDATION TRUST | D10: 478 | E10: 18719 | F10: 0.8974895397 | G10: 0.04393305439 | H10: 323 | I10: 106 | J10: 17 | K10: 10 | L10: 11 | M10: 11 | N10: 0 | O10: 1 | P10: 447 | Q10: 0 | R10: 0 | S10: 30 | T10: 0
A11: Q71 | B11: RWK | C11: EAST LONDON NHS FOUNDATION TRUST | D11: 609 | E11: 14871 | F11: 0.8866995074 | G11: 0.03776683087 | H11: 353 | I11: 187 | J11: 17 | K11: 8 | L11: 15 | M11: 29 | N11: 0 | O11: 107 | P11: 0 | Q11: 0 | R11: 0 | S11: 225 | T11: 277
A12: Q71 | B12: RAT | C12: NORTH EAST LONDON NHS FOUNDATION TRUST | D12: 216 | E12: 16248 | F12: 0.8935185185 | G12: 0.03240740741 | H12: 93 | I12: 100 | J12: 15 | K12: 4 | L12: 3 | M12: 1 | N12: 0 | O12: 0 | P12: 0 | Q12: 0 | R12: 206 | S12: 10 | T12: 0
A13: Q71 | B13: RPG | C13: OXLEAS NHS FOUNDATION TRUST | D13: 299 | E13: 8289 | F13: 0.872909699 | G13: 0.04013377926 | H13: 180 | I13: 81 | J13: 21 | K13: 6 | L13: 6 | M13: 5 | N13: 10 | O13: 100 | P13: 100 | Q13: 89 | R13: 0 | S13: 0 | T13: 0
A14: Q71 | B14: RAL | C14: ROYAL FREE LONDON NHS FOUNDATION TRUST | D14: 33 | E14: 103 | F14: 0.9393939394 | G14: 0.06060606061 | H14: 27 | I14: 4 | J14: 0 | K14: 2 | L14: 0 | M14: 0 | N14: 0 | O14: 0 | P14: 33 | Q14: 0 | R14: 0 | S14: 0 | T14: 0
A15: Q71 | B15: RV5 | C15: SOUTH LONDON AND MAUDSLEY NHS FOUNDATION TRUST | D15: 784 | E15: 33610 | F15: 0.8329081633 | G15: 0.06632653061 | H15: 426 | I15: 227 | J15: 40 | K15: 25 | L15: 27 | M15: 39 | N15: 0 | O15: 319 | P15: 405 | Q15: 0 | R15: 0 | S15: 60 | T15: 0
A16: Q71 | B16: RQY | C16: SOUTH WEST LONDON AND ST GEORGE'S MENTAL HEALTH NHS TRUST | D16: 85 | E16: 13918 | F16: 0.6352941176 | G16: 0.2235294118 | H16: 43 | I16: 11 | J16: 8 | K16: 8 | L16: 11 | M16: 4 | N16: 62 | O16: 23 | P16: 0 | Q16: 0 | R16: 0 | S16: 0 | T16: 0
A17: Q71 | B17: RNK | C17: TAVISTOCK AND PORTMAN NHS FOUNDATION TRUST | D17: 65 | E17: 2637 | F17: 0.9230769231 | G17: 0.01538461538 | H17: 52 | I17: 8 | J17: 0 | K17: 1 | L17: 0 | M17: 4 | N17: 0 | O17: 0 | P17: 65 | Q17: 0 | R17: 0 | S17: 0 | T17: 0
A18: Q71 | B18: RRV | C18: UNIVERSITY COLLEGE LONDON HOSPITALS NHS FOUNDATION TRUST | D18: 7 | E18: 7 | F18: 1 | G18: 0 | H18: 6 | I18: 1 | J18: 0 | K18: 0 | L18: 0 | M18: 0 | N18: 0 | O18: 7 | P18: 0 | Q18: 0 | R18: 0 | S18: 0 | T18: 0
A19: Q71 | B19: RKL | C19: WEST LONDON NHS TRUST | D19: 113 | E19: 7563 | F19: 0.8672566372 | G19: 0.03539823009 | H19: 85 | I19: 13 | J19: 4 | K19: 2 | L19: 2 | M19: 7 | N19: 0 | O19: 0 | P19: 113 | Q19: 0 | R19: 0 | S19: 0 | T19: 0
A20: Q72 | B20: TAD | C20: BRADFORD DISTRICT CARE NHS FOUNDATION TRUST | D20: 69 | E20: 7275 | F20: 0.9565217391 | G20: 0.02898550725 | H20: 46 | I20: 20 | J20: 0 | K20: 0 | L20: 2 | M20: 1 | N20: 0 | O20: 46 | P20: 16 | Q20: 0 | R20: 0 | S20: 7 | T20: 0
A21: Q72 | B21: RV9 | C21: HUMBER TEACHING NHS FOUNDATION TRUST | D21: 82 | E21: 4111 | F21: 0.9024390244 | G21: 0.06097560976 | H21: 58 | I21: 16 | J21: 2 | K21: 2 | L21: 3 | M21: 1 | N21: 0 | O21: 6 | P21: 76 | Q21: 0 | R21: 0 | S21: 0 | T21: 0
A22: Q72 | B22: RGD | C22: LEEDS AND YORK PARTNERSHIP NHS FOUNDATION TRUST | D22: 77 | E22: 6906 | F22: 0.7532467532 | G22: 0.1038961039 | H22: 38 | I22: 20 | J22: 8 | K22: 1 | L22: 7 | M22: 3 | N22: 0 | O22: 0 | P22: 0 | Q22: 77 | R22: 0 | S22: 0 | T22: 0
A23: Q72 | B23: RXE | C23: ROTHERHAM DONCASTER AND SOUTH HUMBER NHS FOUNDATION TRUST | D23: 110 | E23: 19470 | F23: 0.9636363636 | G23: 0.02727272727 | H23: 96 | I23: 10 | J23: 1 | K23: 1 | L23: 2 | M23: 0 | N23: 0 | O23: 0 | P23: 110 | Q23: 0 | R23: 0 | S23: 0 | T23: 0
A24: Q72 | B24: RCU | C24: SHEFFIELD CHILDREN'S NHS FOUNDATION TRUST | D24: 25 | E24: 821 | F24: 0.88 | G24: 0.04 | H24: 18 | I24: 4 | J24: 1 | K24: 0 | L24: 1 | M24: 1 | N24: 0 | O24: 0 | P24: 24 | Q24: 1 | R24: 0 | S24: 0 | T24: 0
A25: Q72 | B25: TAH | C25: SHEFFIELD HEALTH & SOCIAL CARE NHS FOUNDATION TRUST | D25: 147 | E25: 8465 | F25: 0.9455782313 | G25: 0.04081632653 | H25: 115 | I25: 24 | J25: 2 | K25: 1 | L25: 5 | M25: 0 | N25: 0 | O25: 0 | P25: 147 | Q25: 0 | R25: 0 | S25: 0 | T25: 0
A26: Q72 | B26: RXG | C26: SOUTH WEST YORKSHIRE PARTNERSHIP NHS FOUNDATION TRUST | D26: 415 | E26: 11446 | F26: 0.8963855422 | G26: 0.05060240964 | H26: 306 | I26: 66 | J26: 8 | K26: 9 | L26: 12 | M26: 14 | N26: 169 | O26: 0 | P26: 201 | Q26: 45 | R26: 0 | S26: 0 | T26: 0
A27: Q74 | B27: RNN | C27: CUMBRIA PARTNERSHIP NHS FOUNDATION TRUST | D27: 119 | E27: 3698 | F27: 0.9579831933 | G27: 0.03361344538 | H27: 91 | I27: 23 | J27: 1 | K27: 1 | L27: 3 | M27: 0 | N27: 0 | O27: 1 | P27: 114 | Q27: 0 | R27: 0 | S27: 4 | T27: 0
A28: Q74 | B28: RR7 | C28: GATESHEAD HEALTH NHS FOUNDATION TRUST | D28: 78 | E28: 251 | F28: 1 | G28: 0 | H28: 78 | I28: 0 | J28: 0 | K28: 0 | L28: 0 | M28: 0 | N28: 0 | O28: 0 | P28: 78 | Q28: 0 | R28: 0 | S28: 0 | T28: 0
A29: Q74 | B29: RX4 | C29: NORTHUMBERLAND, TYNE AND WEAR NHS FOUNDATION TRUST | D29: 394 | E29: 24949 | F29: 0.845177665 | G29: 0.08629441624 | H29: 240 | I29: 93 | J29: 22 | K29: 15 | L29: 19 | M29: 5 | N29: 0 | O29: 0 | P29: 0 | Q29: 257 | R29: 0 | S29: 18 | T29: 119
A30: Q74 | B30: RTF | C30: NORTHUMBRIA HEALTHCARE NHS FOUNDATION TRUST | D30: 33 | E30: 201 | F30: 0.9696969697 | G30: 0 | H30: 30 | I30: 2 | J30: 0 | K30: 0 | L30: 0 | M30: 1 | N30: 0 | O30: 0 | P30: 33 | Q30: 0 | R30: 0 | S30: 0 | T30: 0
A31: Q74 | B31: RE9 | C31: SOUTH TYNESIDE NHS FOUNDATION TRUST | D31: 38 | E31: 325 | F31: 1 | G31: 0 | H31: 29 | I31: 9 | J31: 0 | K31: 0 | L31: 0 | M31: 0 | N31: 0 | O31: 0 | P31: 38 | Q31: 0 | R31: 0 | S31: 0 | T31: 0
A32: Q74 | B32: RX3 | C32: TEES, ESK AND WEAR VALLEYS NHS FOUNDATION TRUST | D32: 1824 | E32: 78345 | F32: 0.8667763158 | G32: 0.04879385965 | H32: 950 | I32: 631 | J32: 99 | K32: 42 | L32: 47 | M32: 55 | N32: 2 | O32: 567 | P32: 1255 | Q32: 0 | R32: 0 | S32: 0 | T32: 0
A33: Q75 | B33: RBS | C33: ALDER HEY CHILDREN'S NHS FOUNDATION TRUST | D33: 34 | E33: 828 | F33: 1 | G33: 0 | H33: 30 | I33: 4 | J33: 0 | K33: 0 | L33: 0 | M33: 0 | N33: 0 | O33: 0 | P33: 34 | Q33: 0 | R33: 0 | S33: 0 | T33: 0
A34: Q75 | B34: RXA | C34: CHESHIRE AND WIRRAL PARTNERSHIP NHS FOUNDATION TRUST | D34: 83 | E34: 8199 | F34: 0.9277108434 | G34: 0.02409638554 | H34: 43 | I34: 34 | J34: 3 | K34: 2 | L34: 0 | M34: 1 | N34: 0 | O34: 0 | P34: 0 | Q34: 83 | R34: 0 | S34: 0 | T34: 0
A35: Q75 | B35: RW4 | C35: MERSEY CARE NHS FOUNDATION TRUST | D35: 340 | E35: 12025 | F35: 0.8882352941 | G35: 0.02941176471 | H35: 153 | I35: 149 | J35: 26 | K35: 4 | L35: 6 | M35: 2 | N35: 0 | O35: 340 | P35: 0 | Q35: 0 | R35: 0 | S35: 0 | T35: 0
A36: Q75 | B36: RTV | C36: NORTH WEST BOROUGHS HEALTHCARE NHS FOUNDATION TRUST | D36: 260 | E36: 11197 | F36: 0.9461538462 | G36: 0.007692307692 | H36: 177 | I36: 69 | J36: 6 | K36: 1 | L36: 1 | M36: 6 | N36: 0 | O36: 0 | P36: 260 | Q36: 0 | R36: 0 | S36: 0 | T36: 0
A37: Q76 | B37: RXM | C37: DERBYSHIRE HEALTHCARE NHS FOUNDATION TRUST | D37: 288 | E37: 14680 | F37: 0.9722222222 | G37: 0 | H37: 230 | I37: 50 | J37: 3 | K37: 0 | L37: 0 | M37: 5 | N37: 0 | O37: 0 | P37: 217 | Q37: 0 | R37: 0 | S37: 71 | T37: 0
A38: Q76 | B38: RRE | C38: MIDLANDS PARTNERSHIP NHS FOUNDATION TRUST | D38: 129 | E38: 9961 | F38: 0.8914728682 | G38: 0.02325581395 | H38: 84 | I38: 31 | J38: 9 | K38: 1 | L38: 2 | M38: 2 | N38: 0 | O38: 1 | P38: 11 | Q38: 0 | R38: 0 | S38: 117 | T38: 0
A39: Q76 | B39: RLY | C39: NORTH STAFFORDSHIRE COMBINED HEALTHCARE NHS TRUST | D39: 191 | E39: 1518 | F39: 0.8952879581 | G39: 0.04712041885 | H39: 121 | I39: 50 | J39: 3 | K39: 4 | L39: 5 | M39: 8 | N39: 0 | O39: 0 | P39: 191 | Q39: 0 | R39: 0 | S39: 0 | T39: 0
A40: Q76 | B40: RHA | C40: NOTTINGHAMSHIRE HEALTHCARE NHS FOUNDATION TRUST | D40: 189 | E40: 15735 | F40: 0.7777777778 | G40: 0.08994708995 | H40: 88 | I40: 59 | J40: 16 | K40: 7 | L40: 10 | M40: 9 | N40: 0 | O40: 0 | P40: 189 | Q40: 0 | R40: 0 | S40: 0 | T40: 0
A41: Q77 | B41: RXT | C41: BIRMINGHAM AND SOLIHULL MENTAL HEALTH NHS FOUNDATION TRUST | D41: 415 | E41: 16183 | F41: 0.9204819277 | G41: 0.02891566265 | H41: 264 | I41: 118 | J41: 15 | K41: 6 | L41: 6 | M41: 6 | N41: 0 | O41: 62 | P41: 353 | Q41: 0 | R41: 0 | S41: 0 | T41: 0
A42: Q77 | B42: RQ3 | C42: BIRMINGHAM WOMEN'S AND CHILDREN'S NHS FOUNDATION TRUST | D42: 9 | E42: 35 | F42: 0.6666666667 | G42: 0 | H42: 4 | I42: 2 | J42: 2 | K42: 0 | L42: 0 | M42: 1 | N42: 0 | O42: 0 | P42: 9 | Q42: 0 | R42: 0 | S42: 0 | T42: 0
A43: Q77 | B43: TAJ | C43: BLACK COUNTRY PARTNERSHIP NHS FOUNDATION TRUST | D43: 50 | E43: 6730 | F43: 0.96 | G43: 0.02 | H43: 40 | I43: 8 | J43: 1 | K43: 0 | L43: 1 | M43: 0 | N43: 0 | O43: 0 | P43: 50 | Q43: 0 | R43: 0 | S43: 0 | T43: 0
A44: Q77 | B44: RYG | C44: COVENTRY AND WARWICKSHIRE PARTNERSHIP NHS TRUST | D44: 130 | E44: 12939 | F44: 0.8846153846 | G44: 0.02307692308 | H44: 77 | I44: 38 | J44: 6 | K44: 2 | L44: 1 | M44: 6 | N44: 3 | O44: 4 | P44: 123 | Q44: 0 | R44: 0 | S44: 0 | T44: 0
A45: Q77 | B45: RYK | C45: DUDLEY AND WALSALL MENTAL HEALTH PARTNERSHIP NHS TRUST | D45: 118 | E45: 6779 | F45: 0.7203389831 | G45: 0.008474576271 | H45: 42 | I45: 43 | J45: 8 | K45: 1 | L45: 0 | M45: 24 | N45: 0 | O45: 0 | P45: 0 | Q45: 0 | R45: 0 | S45: 0 | T45: 118
A46: Q77 | B46: R1A | C46: WORCESTERSHIRE HEALTH AND CARE NHS TRUST | D46: 147 | E46: 2686 | F46: 0.9115646259 | G46: 0.03401360544 | H46: 92 | I46: 42 | J46: 6 | K46: 2 | L46: 3 | M46: 2 | N46: 0 | O46: 0 | P46: 147 | Q46: 0 | R46: 0 | S46: 0 | T46: 0
A47: Q78 | B47: RY4 | C47: HERTFORDSHIRE COMMUNITY NHS TRUST | D47: 53 | E47: 503 | F47: 0.9433962264 | G47: 0 | H47: 25 | I47: 25 | J47: 2 | K47: 0 | L47: 0 | M47: 1 | N47: 7 | O47: 0 | P47: 0 | Q47: 45 | R47: 0 | S47: 1 | T47: 0
A48: Q78 | B48: RWR | C48: HERTFORDSHIRE PARTNERSHIP UNIVERSITY NHS FOUNDATION TRUST | D48: 423 | E48: 11154 | F48: 0.8888888889 | G48: 0.0401891253 | H48: 194 | I48: 182 | J48: 23 | K48: 9 | L48: 8 | M48: 7 | N48: 0 | O48: 0 | P48: 367 | Q48: 0 | R48: 10 | S48: 46 | T48: 0
A49: Q78 | B49: RT5 | C49: LEICESTERSHIRE PARTNERSHIP NHS TRUST | D49: 112 | E49: 29861 | F49: 0.9553571429 | G49: 0.008928571429 | H49: 74 | I49: 33 | J49: 2 | K49: 1 | L49: 0 | M49: 2 | N49: 0 | O49: 39 | P49: 73 | Q49: 0 | R49: 0 | S49: 0 | T49: 0
A50: Q78 | B50: RP7 | C50: LINCOLNSHIRE PARTNERSHIP NHS FOUNDATION TRUST | D50: 531 | E50: 3314 | F50: 0.9171374765 | G50: 0.01694915254 | H50: 391 | I50: 96 | J50: 24 | K50: 2 | L50: 7 | M50: 11 | N50: 2 | O50: 67 | P50: 462 | Q50: 0 | R50: 0 | S50: 0 | T50: 0
A51: Q78 | B51: RP1 | C51: NORTHAMPTONSHIRE HEALTHCARE NHS FOUNDATION TRUST | D51: 495 | E51: 6018 | F51: 0.9131313131 | G51: 0.02222222222 | H51: 339 | I51: 113 | J51: 18 | K51: 6 | L51: 5 | M51: 14 | N51: 0 | O51: 16 | P51: 472 | Q51: 0 | R51: 0 | S51: 7 | T51: 0
A52: Q79 | B52: RT1 | C52: CAMBRIDGESHIRE AND PETERBOROUGH NHS FOUNDATION TRUST | D52: 296 | E52: 5839 | F52: 0.875 | G52: 0.04391891892 | H52: 184 | I52: 75 | J52: 15 | K52: 4 | L52: 9 | M52: 9 | N52: 0 | O52: 174 | P52: 0 | Q52: 107 | R52: 0 | S52: 15 | T52: 0
A53: Q79 | B53: R1L | C53: ESSEX PARTNERSHIP UNIVERSITY NHS FOUNDATION TRUST | D53: 90 | E53: 19536 | F53: 0.9333333333 | G53: 0.02222222222 | H53: 49 | I53: 35 | J53: 3 | K53: 0 | L53: 2 | M53: 1 | N53: 0 | O53: 0 | P53: 90 | Q53: 0 | R53: 0 | S53: 0 | T53: 0
A54: Q79 | B54: RMY | C54: NORFOLK AND SUFFOLK NHS FOUNDATION TRUST | D54: 170 | E54: 13312 | F54: 0.8941176471 | G54: 0.03529411765 | H54: 105 | I54: 47 | J54: 7 | K54: 3 | L54: 3 | M54: 5 | N54: 0 | O54: 0 | P54: 167 | Q54: 0 | R54: 0 | S54: 3 | T54: 0
A55: Q83 | B55: RXV | C55: GREATER MANCHESTER MENTAL HEALTH NHS FOUNDATION TRUST | D55: 150 | E55: 11816 | F55: 0.58 | G55: 0.22 | H55: 40 | I55: 47 | J55: 17 | K55: 18 | L55: 15 | M55: 13 | N55: 0 | O55: 149 | P55: 1 | Q55: 0 | R55: 0 | S55: 0 | T55: 0
A56: Q83 | B56: RT2 | C56: PENNINE CARE NHS FOUNDATION TRUST | D56: 329 | E56: 9122 | F56: 0.9209726444 | G56: 0.05775075988 | H56: 274 | I56: 29 | J56: 4 | K56: 17 | L56: 2 | M56: 3 | N56: 29 | O56: 0 | P56: 287 | Q56: 6 | R56: 0 | S56: 7 | T56: 0
A57: Q84 | B57: RXL | C57: BLACKPOOL TEACHING HOSPITALS NHS FOUNDATION TRUST | D57: 102 | E57: 1512 | F57: 0.9411764706 | G57: 0.01960784314 | H57: 72 | I57: 24 | J57: 3 | K57: 0 | L57: 2 | M57: 1 | N57: 0 | O57: 0 | P57: 102 | Q57: 0 | R57: 0 | S57: 0 | T57: 0
A58: Q84 | B58: RW5 | C58: LANCASHIRE CARE NHS FOUNDATION TRUST | D58: 191 | E58: 25461 | F58: 0.9109947644 | G58: 0.04188481675 | H58: 116 | I58: 58 | J58: 7 | K58: 5 | L58: 3 | M58: 2 | N58: 0 | O58: 0 | P58: 186 | Q58: 0 | R58: 0 | S58: 5 | T58: 0
A59: Q85 | B59: RJ8 | C59: CORNWALL PARTNERSHIP NHS FOUNDATION TRUST | D59: 164 | E59: 3692 | F59: 0.743902439 | G59: 0.05487804878 | H59: 72 | I59: 50 | J59: 15 | K59: 1 | L59: 8 | M59: 18 | N59: 0 | O59: 62 | P59: 33 | Q59: 4 | R59: 0 | S59: 65 | T59: 0
A60: Q85 | B60: RWV | C60: DEVON PARTNERSHIP NHS TRUST | D60: 426 | E60: 3921 | F60: 0.9507042254 | G60: 0.01877934272 | H60: 306 | I60: 99 | J60: 11 | K60: 1 | L60: 7 | M60: 2 | N60: 0 | O60: 0 | P60: 426 | Q60: 0 | R60: 0 | S60: 0 | T60: 0
A61: Q85 | B61: RDY | C61: DORSET HEALTHCARE UNIVERSITY NHS FOUNDATION TRUST | D61: 413 | E61: 7456 | F61: 0.9467312349 | G61: 0.01210653753 | H61: 306 | I61: 85 | J61: 17 | K61: 3 | L61: 2 | M61: 0 | N61: 3 | O61: 54 | P61: 336 | Q61: 0 | R61: 0 | S61: 20 | T61: 0
A62: Q85 | B62: RH5 | C62: SOMERSET PARTNERSHIP NHS FOUNDATION TRUST | D62: 43 | E62: 4903 | F62: 0.9069767442 | G62: 0.02325581395 | H62: 30 | I62: 9 | J62: 3 | K62: 0 | L62: 1 | M62: 0 | N62: 0 | O62: 0 | P62: 0 | Q62: 0 | R62: 0 | S62: 43 | T62: 0
A63: Q86 | B63: RTQ | C63: 2GETHER NHS FOUNDATION TRUST | D63: 277 | E63: 11497 | F63: 0.7906137184 | G63: 0.1046931408 | H63: 208 | I63: 11 | J63: 20 | K63: 10 | L63: 19 | M63: 9 | N63: 52 | O63: 0 | P63: 41 | Q63: 0 | R63: 0 | S63: 184 | T63: 0
A64: Q86 | B64: RVN | C64: AVON AND WILTSHIRE MENTAL HEALTH PARTNERSHIP NHS TRUST | D64: 814 | E64: 5168 | F64: 0.8832923833 | G64: 0.02702702703 | H64: 484 | I64: 235 | J64: 39 | K64: 12 | L64: 10 | M64: 34 | N64: 0 | O64: 40 | P64: 83 | Q64: 589 | R64: 0 | S64: 102 | T64: 0
A65: Q87 | B65: RWX | C65: BERKSHIRE HEALTHCARE NHS FOUNDATION TRUST | D65: 278 | E65: 749 | F65: 0.8273381295 | G65: 0.07913669065 | H65: 163 | I65: 67 | J65: 19 | K65: 9 | L65: 13 | M65: 7 | N65: 11 | O65: 143 | P65: 52 | Q65: 0 | R65: 0 | S65: 72 | T65: 0
A66: Q87 | B66: R1F | C66: ISLE OF WIGHT NHS TRUST | D66: 21 | E66: 3432 | F66: 1 | G66: 0 | H66: 19 | I66: 2 | J66: 0 | K66: 0 | L66: 0 | M66: 0 | N66: 0 | O66: 0 | P66: 21 | Q66: 0 | R66: 0 | S66: 0 | T66: 0
A67: Q87 | B67: RNU | C67: OXFORD HEALTH NHS FOUNDATION TRUST | D67: 759 | E67: 10118 | F67: 0.9328063241 | G67: 0.02898550725 | H67: 531 | I67: 177 | J67: 27 | K67: 3 | L67: 19 | M67: 2 | N67: 0 | O67: 175 | P67: 62 | Q67: 0 | R67: 515 | S67: 7 | T67: 0
A68: Q87 | B68: R1C | C68: SOLENT NHS TRUST | D68: 144 | E68: 1436 | F68: 0.9236111111 | G68: 0.04166666667 | H68: 95 | I68: 38 | J68: 3 | K68: 5 | L68: 1 | M68: 2 | N68: 0 | O68: 8 | P68: 136 | Q68: 0 | R68: 0 | S68: 0 | T68: 0
A69: Q87 | B69: RW1 | C69: SOUTHERN HEALTH NHS FOUNDATION TRUST | D69: 318 | E69: 10295 | F69: 0.9119496855 | G69: 0.0534591195 | H69: 211 | I69: 79 | J69: 8 | K69: 10 | L69: 7 | M69: 3 | N69: 0 | O69: 0 | P69: 177 | Q69: 0 | R69: 0 | S69: 141 | T69: 0
A70: Q88 | B70: RXY | C70: KENT AND MEDWAY NHS AND SOCIAL CARE PARTNERSHIP TRUST | D70: 510 | E70: 11322 | F70: 0.9450980392 | G70: 0.02156862745 | H70: 327 | I70: 155 | J70: 14 | K70: 5 | L70: 6 | M70: 3 | N70: 0 | O70: 0 | P70: 510 | Q70: 0 | R70: 0 | S70: 0 | T70: 0
A71: Q88 | B71: RXX | C71: SURREY AND BORDERS PARTNERSHIP NHS FOUNDATION TRUST | D71: 256 | E71: 9190 | F71: 0.91796875 | G71: 0.03125 | H71: 152 | I71: 83 | J71: 9 | K71: 3 | L71: 5 | M71: 4 | N71: 8 | O71: 144 | P71: 76 | Q71: 0 | R71: 0 | S71: 28 | T71: 0
A72: Q88 | B72: RX2 | C72: SUSSEX PARTNERSHIP NHS FOUNDATION TRUST | D72: 131 | E72: 14514 | F72: 0.786259542 | G72: 0.08396946565 | H72: 66 | I72: 37 | J72: 12 | K72: 4 | L72: 7 | M72: 5 | N72: 0 | O72: 41 | P72: 0 | Q72: 0 | R72: 0 | S72: 90 | T72: 0
A73: IS1 | B73: NL3 | C73: CARE PLUS GROUP | D73: 0 | E73: 16 | F73: NA | G73: NA | H73: 0 | I73: 0 | J73: 0 | K73: 0 | L73: 0 | M73: 0 | N73: 0 | O73: 0 | P73: 0 | Q73: 0 | R73: 0 | S73: 0 | T73: 0
A74: IS1 | B74: NNF | C74: CITY HEALTH CARE PARTNERSHIP CIC | D74: 158 | E74: 2297 | F74: 0.9810126582 | G74: 0.01265822785 | H74: 132 | I74: 23 | J74: 0 | K74: 2 | L74: 0 | M74: 1 | N74: 0 | O74: 4 | P74: 154 | Q74: 0 | R74: 0 | S74: 0 | T74: 0
A75: IS1 | B75: NMJ | C75: CYGNET HEALTH CARE LIMITED | D75: 6 | E75: 1123 | F75: 0.6666666667 | G75: 0 | H75: * | I75: * | J75: * | K75: * | L75: * | M75: * | N75: * | O75: * | P75: * | Q75: * | R75: * | S75: * | T75: *
A76: IS1 | B76: DE8 | C76: ELYSIUM HEALTHCARE | D76: 1 | E76: 102 | F76: * | G76: * | H76: * | I76: * | J76: * | K76: * | L76: * | M76: * | N76: * | O76: * | P76: * | Q76: * | R76: * | S76: * | T76: *
A77: IS1 | B77: NWX | C77: HERE | D77: 60 | E77: 455 | F77: 0.8666666667 | G77: 0.03333333333 | H77: 41 | I77: 11 | J77: 5 | K77: 1 | L77: 1 | M77: 1 | N77: 0 | O77: 0 | P77: 0 | Q77: 0 | R77: 0 | S77: 60 | T77: 0
A78: IS1 | B78: NR5 | C78: LIVEWELL SOUTHWEST | D78: 335 | E78: 2438 | F78: 0.9194029851 | G78: 0.03880597015 | H78: 209 | I78: 99 | J78: 11 | K78: 6 | L78: 7 | M78: 3 | N78: 4 | O78: 0 | P78: 314 | Q78: 0 | R78: 0 | S78: 17 | T78: 0
A79: IS1 | B79: NQL | C79: NAVIGO HEALTH AND SOCIAL CARE CIC | D79: 113 | E79: 2359 | F79: 0.9115044248 | G79: 0.03539823009 | H79: 77 | I79: 26 | J79: 4 | K79: 4 | L79: 0 | M79: 2 | N79: 0 | O79: 0 | P79: 0 | Q79: 0 | R79: 0 | S79: 0 | T79: 113
A80: IS1 | B80: AM5 | C80: OUTLOOK SW LTD | D80: 13 | E80: 3760 | F80: 1 | G80: 0 | H80: 10 | I80: 3 | J80: 0 | K80: 0 | L80: 0 | M80: 0 | N80: 0 | O80: 0 | P80: 0 | Q80: 0 | R80: 0 | S80: 0 | T80: 13
A81: IS1 | B81: NV2 | C81: THE HUNTERCOMBE GROUP | D81: 39 | E81: 630 | F81: 0.7948717949 | G81: 0.07692307692 | H81: 25 | I81: 6 | J81: 5 | K81: 1 | L81: 2 | M81: 0 | N81: 0 | O81: 0 | P81: 39 | Q81: 0 | R81: 0 | S81: 0 | T81: 0
A82: IS1 | B82: NDK | C82: YARBOROUGH CLEE CARE LIMITED | D82: 10 | E82: 10 | F82: 0.9 | G82: 0 | H82: 5 | I82: 4 | J82: 1 | K82: 0 | L82: 0 | M82: 0 | N82: 0 | O82: 0 | P82: 0 | Q82: 10 | R82: 0 | S82: 0 | T82: 0

Sheet Categories
A3: Region (LO) Code | B3: Trust Code | C3: Trust Name | D3: Service Category Provided | E3: Total Responses | F3: Percentage Recommended | G3: Percentage Not Recommended | H3: Breakdown of Responses
H4: Extremely Likely | I4: Likely | J4: Neither | K4: Unlikely | L4: Extremely Unlikely | M4: Don't Know
D5: England (including Independent Sector Providers) | E5: 17577 | F5: 0.8897422768 | G5: 0.04101951414 | H5: 10919 | I5: 4720 | J5: 773 | K5: 326 | L5: 395 | M5: 444
D6: England (excluding Independent Sector Providers) | E6: 16842 | F6: 0.8884336777 | G6: 0.04138463365 | H6: 10417 | I6: 4546 | J6: 745 | K6: 312 | L6: 385 | M6: 437
D7: Selection (excluding suppressed data) | E7: =SUBTOTAL(9,E8:E667) -> 17577 | F7: =IFERROR((H7+I7)/SUM(H7:M7), "-") -> 0.8898025363 | G7: =IFERROR((K7+L7)/SUM(H7:M7), "-") -> 0.04111413516 | H7: =SUBTOTAL(9,H8:H667) -> 10714 | I7: 4652 | J7: 758 | K7: 322 | L7: 388 | M7: 435
A8: Q71 | B8: RRP | C8: BARNET, ENFIELD AND HARINGEY MENTAL HEALTH NHS TRUST | D8: Acute Services | E8: 191 | F8: 0.9267015707 | G8: 0.02094240838 | H8: 59 | I8: 118 | J8: 8 | K8: 3 | L8: 1 | M8: 2
A9: Q71 | B9: RRP | C9: BARNET, ENFIELD AND HARINGEY MENTAL HEALTH NHS TRUST | D9: Child & Adolescent Mental Health Services | E9: 15 | F9: 0.7333333333 | G9: 0.06666666667 | H9: 7 | I9: 4 | J9: 3 | K9: 0 | L9: 1 | M9: 0
A10: Q71 | B10: RRP | C10: BARNET, ENFIELD AND HARINGEY MENTAL HEALTH NHS TRUST | D10: Secondary Care Community Services | E10: 375 | F10: 0.848 | G10: 0.02933333333 | H10: 220 | I10: 98 | J10: 25 | K10: 4 | L10: 7 | M10: 21
A11: Q71 | B11: RRP | C11: BARNET, ENFIELD AND HARINGEY MENTAL HEALTH NHS TRUST | D11: Secure & Forensic Services | E11: 101 | F11: 0.8811881188 | G11: 0.0495049505 | H11: 63 | I11: 26 | J11: 6 | K11: 4 | L11: 1 | M11: 1
A12: Q71 | B12: RRP | C12: BARNET, ENFIELD AND HARINGEY MENTAL HEALTH NHS TRUST | D12: Specialist Services | E12: 44 | F12: 0.9090909091 | G12: 0 | H12: 26 | I12: 14 | J12: 2 | K12: 0 | L12: 0 | M12: 2
A13: Q71 | B13: TAF | C13: CAMDEN AND ISLINGTON NHS FOUNDATION TRUST | D13: Acute Services | E13: 16 | F13: 0.5625 | G13: 0.25 | H13: 3 | I13: 6 | J13: 3 | K13: 1 | L13: 3 | M13: 0
A14: Q71 | B14: TAF | C14: CAMDEN AND ISLINGTON NHS FOUNDATION TRUST | D14: Primary Care | E14: 63 | F14: 0.9365079365 | G14: 0 | H14: 42 | I14: 17 | J14: 4 | K14: 0 | L14: 0 | M14: 0
A15: Q71 | B15: TAF | C15: CAMDEN AND ISLINGTON NHS FOUNDATION TRUST | D15: Secondary Care Community Services | E15: 53 | F15: 0.9433962264 | G15: 0.01886792453 | H15: 35 | I15: 15 | J15: 2 | K15: 1 | L15: 0 | M15: 0
A16: Q71 | B16: TAF | C16: CAMDEN AND ISLINGTON NHS FOUNDATION TRUST | D16: Specialist Services | E16: 5 | F16: 1 | G16: 0 | H16: 1 | I16: 4 | J16: 0 | K16: 0 | L16: 0 | M16: 0
A17: Q71 | B17: RV3 | C17: CENTRAL AND NORTH WEST LONDON NHS FOUNDATION TRUST | D17: Acute Services | E17: 87 | F17: 0.724137931 | G17: 0.2068965517 | H17: 44 | I17: 19 | J17: 5 | K17: 9 | L17: 9 | M17: 1
A18: Q71 | B18: RV3 | C18: CENTRAL AND NORTH WEST LONDON NHS FOUNDATION TRUST | D18: Child & Adolescent Mental Health Services | E18: 73 | F18: 0.904109589 | G18: 0 | H18: 44 | I18: 22 | J18: 5 | K18: 0 | L18: 0 | M18: 2
A19: Q71 | B19: RV3 | C19: CENTRAL AND NORTH WEST LONDON NHS FOUNDATION TRUST | D19: Mental Health Other | E19: 6 | F19: 1 | G19: 0 | H19: 6 | I19: 0 | J19: 0 | K19: 0 | L19: 0 | M19: 0
A20: Q71 | B20: RV3 | C20: CENTRAL AND NORTH WEST LONDON NHS FOUNDATION TRUST | D20: Secondary Care Community Services | E20: 196 | F20: 0.9591836735 | G20: 0.005102040816 | H20: 149 | I20: 39 | J20: 3 | K20: 1 | L20: 0 | M20: 4
A21: Q71 | B21: RV3 | C21: CENTRAL AND NORTH WEST LONDON NHS FOUNDATION TRUST | D21: Specialist Services | E21: 116 | F21: 0.9137931034 | G21: 0.01724137931 | H21: 80 | I21: 26 | J21: 4 | K21: 0 | L21: 2 | M21: 4
A22: Q71 | B22: RWK | C22: EAST LONDON NHS FOUNDATION TRUST | D22: Acute Services | E22: 95 | F22: 0.8315789474 | G22: 0.06315789474 | H22: 58 | I22: 21 | J22: 5 | K22: 3 | L22: 3 | M22: 5
A23: Q71 | B23: RWK | C23: EAST LONDON NHS FOUNDATION TRUST | D23: Child & Adolescent Mental Health Services | E23: 210 | F23: 0.8952380952 | G23: 0.01904761905 | H23: 94 | I23: 94 | J23: 0 | K23: 2 | L23: 2 | M23: 18
A24: Q71 | B24: RWK | C24: EAST LONDON NHS FOUNDATION TRUST | D24: Mental Health Other | E24: 10 | F24: 0.8 | G24: 0 | H24: 8 | I24: 0 | J24: 1 | K24: 0 | L24: 0 | M24: 1
A25: Q71 | B25: RWK | C25: EAST LONDON NHS FOUNDATION TRUST | D25: Primary Care | E25: 67 | F25: 1 | G25: 0 | H25: 55 | I25: 12 | J25: 0 | K25: 0 | L25: 0 | M25: 0
A26: Q71 | B26: RWK | C26: EAST LONDON NHS FOUNDATION TRUST | D26: Secondary Care Community Services | E26: 185 | F26: 0.8594594595 | G26: 0.07027027027 | H26: 114 | I26: 45 | J26: 9 | K26: 3 | L26: 10 | M26: 4
A27: Q71 | B27: RWK | C27: EAST LONDON NHS FOUNDATION TRUST | D27: Specialist Services | E27: 42 | F27: 0.9285714286 | G27: 0 | H27: 24 | I27: 15 | J27: 2 | K27: 0 | L27: 0 | M27: 1
A28: Q71 | B28: RAT | C28: NORTH EAST LONDON NHS FOUNDATION TRUST | D28: Acute Services | E28: 15 | F28: 1 | G28: 0 | H28: 6 | I28: 9 | J28: 0 | K28: 0 | L28: 0 | M28: 0
A29: Q71 | B29: RAT | C29: NORTH EAST LONDON NHS FOUNDATION TRUST | D29: Child & Adolescent Mental Health Services | E29: 103 | F29: 0.8446601942 | G29: 0.04854368932 | H29: 46 | I29: 41 | J29: 11 | K29: 3 | L29: 2 | M29: 0
A30: Q71 | B30: RAT | C30: NORTH EAST LONDON NHS FOUNDATION TRUST | D30: Mental Health Other | E30: 5 | F30: 1 | G30: 0 | H30: 4 | I30: 1 | J30: 0 | K30: 0 | L30: 0 | M30: 0
A31: Q71 | B31: RAT | C31: NORTH EAST LONDON NHS FOUNDATION TRUST | D31: Primary Care | E31: 11 | F31: 1 | G31: 0 | H31: 5 | I31: 6 | J31: 0 | K31: 0 | L31: 0 | M31: 0
A32: Q71 | B32: RAT | C32: NORTH EAST LONDON NHS FOUNDATION TRUST | D32: Secondary Care Community Services | E32: 68 | F32: 0.9264705882 | G32: 0.02941176471 | H32: 25 | I32: 38 | J32: 2 | K32: 1 | L32: 1 | M32: 1
A33: Q71 | B33: RAT | C33: NORTH EAST LONDON NHS FOUNDATION TRUST | D33: Specialist Services | E33: 14 | F33: 0.8571428571 | G33: 0 | H33: 7 | I33: 5 | J33: 2 | K33: 0 | L33: 0 | M33: 0
A34: Q71 | B34: RPG | C34: OXLEAS NHS FOUNDATION TRUST | D34: Acute Services | E34: 87 | F34: 0.816091954 | G34: 0.09195402299 | H34: 39 | I34: 32 | J34: 7 | K34: 5 | L34: 3 | M34: 1
A35: Q71 | B35: RPG | C35: OXLEAS NHS FOUNDATION TRUST | D35: Secondary Care Community Services | E35: 130 | F35: 0.8769230769 | G35: 0.01538461538 | H35: 85 | I35: 29 | J35: 11 | K35: 0 | L35: 2 | M35: 3
A36: Q71 | B36: RPG | C36: OXLEAS NHS FOUNDATION TRUST | D36: Secure & Forensic Services | E36: 37 | F36: 0.9189189189 | G36: 0 | H36: 26 | I36: 8 | J36: 3 | K36: 0 | L36: 0 | M36: 0
A37: Q71 | B37: RPG | C37: OXLEAS NHS FOUNDATION TRUST | D37: Specialist Services | E37: 45 | F37: 0.9333333333 | G37: 0.04444444444 | H37: 30 | I37: 12 | J37: 0 | K37: 1 | L37: 1 | M37: 1
A38: Q71 | B38: RAL | C38: ROYAL FREE LONDON NHS FOUNDATION TRUST | D38: Child & Adolescent Mental Health Services | E38: 33 | F38: 0.9393939394 | G38: 0.06060606061 | H38: 27 | I38: 4 | J38: 0 | K38: 2 | L38: 0 | M38: 0
A39: Q71 | B39: RV5 | C39: SOUTH LONDON AND MAUDSLEY NHS FOUNDATION TRUST | D39: Acute Services | E39: 213 | F39: 0.7230046948 | G39: 0.1408450704 | H39: 85 | I39: 69 | J39: 18 | K39: 17 | L39: 13 | M39: 11
A40: Q71 | B40: RV5 | C40: SOUTH LONDON AND MAUDSLEY NHS FOUNDATION TRUST | D40: Child & Adolescent Mental Health Services | E40: 108 | F40: 0.8703703704 | G40: 0.05555555556 | H40: 76 | I40: 18 | J40: 3 | K40: 1 | L40: 5 | M40: 5
A41: Q71 | B41: RV5 | C41: SOUTH LONDON AND MAUDSLEY NHS FOUNDATION TRUST | D41: Primary Care | E41: 9 | F41: 1 | G41: 0 | H41: 7 | I41: 2 | J41: 0 | K41: 0 | L41: 0 | M41: 0
A42: Q71 | B42: RV5 | C42: SOUTH LONDON AND MAUDSLEY NHS FOUNDATION TRUST | D42: Secondary Care Community Services | E42: 308 | F42: 0.8538961039 | G42: 0.03571428571 | H42: 164 | I42: 99 | J42: 16 | K42: 3 | L42: 8 | M42: 18
A43: Q71 | B43: RV5 | C43: SOUTH LONDON AND MAUDSLEY NHS FOUNDATION TRUST | D43: Secure & Forensic Services | E43: 64 | F43: 0.84375 | G43: 0.046875 | H43: 26 | I43: 28 | J43: 3 | K43: 3 | L43: 0 | M43: 4
A44: Q71 | B44: RV5 | C44: SOUTH LONDON AND MAUDSLEY NHS FOUNDATION TRUST | D44: Specialist Services | E44: 82 | F44: 0.9634146341 | G44: 0.0243902439 | H44: 68 | I44: 11 | J44: 0 | K44: 1 | L44: 1 | M44: 1
A45: Q71 | B45: RQY | C45: SOUTH WEST LONDON AND ST GEORGE'S MENTAL HEALTH NHS TRUST | D45: Acute Services | E45: 16 | F45: 0.5 | G45: 0.375 | H45: 7 | I45: 1 | J45: 2 | K45: 4 | L45: 2 | M45: 0
A46: Q71 | B46: RQY | C46: SOUTH WEST LONDON AND ST GEORGE'S MENTAL HEALTH NHS TRUST | D46: Child & Adolescent Mental Health Services | E46: 2 | F46: * | G46: * | H46: * | I46: * | J46: * | K46: * | L46: * | M46: *
A47: Q71 | B47: RQY | C47: SOUTH WEST LONDON AND ST GEORGE'S MENTAL HEALTH NHS TRUST | D47: Secondary Care Community Services | E47: 65 | F47: 0.6923076923 | G47: 0.1538461538 | H47: 36 | I47: 9 | J47: 6 | K47: 1 | L47: 9 | M47: 4
A48: Q71 | B48: RQY | C48: SOUTH WEST LONDON AND ST GEORGE'S MENTAL HEALTH NHS TRUST | D48: Secure & Forensic Services | E48: 2 | F48: * | G48: * | H48: * | I48: * | J48: * | K48: * | L48: * | M48: *
A49: Q71 | B49: RNK | C49: TAVISTOCK AND PORTMAN NHS FOUNDATION TRUST | D49: Mental Health Other | E49: 65 | F49: 0.9230769231 | G49: 0.01538461538 | H49: 52 | I49: 8 | J49: 0 | K49: 1 | L49: 0 | M49: 4
A50: Q71 | B50: RRV | C50: UNIVERSITY COLLEGE LONDON HOSPITALS NHS FOUNDATION TRUST | D50: Primary Care | E50: 7 | F50: 1 | G50: 0 | H50: 6 | I50: 1 | J50: 0 | K50: 0 | L50: 0 | M50: 0
A51: Q71 | B51: RKL | C51: WEST LONDON NHS TRUST | D51: Acute Services | E51: 32 | F51: 0.5625 | G51: 0.125 | H51: 11 | I51: 7 | J51: 4 | K51: 2 | L51: 2 | M51: 6
A52: Q71 | B52: RKL | C52: WEST LONDON NHS TRUST | D52: Mental Health Other | E52: 1 | F52: * | G52: * | H52: * | I52: * | J52: * | K52: * | L52: * | M52: *
A53: Q71 | B53: RKL | C53: WEST LONDON NHS TRUST | D53: Primary Care | E53: 1 | F53: * | G53: * | H53: * | I53: * | J53: * | K53: * | L53: * | M53: *
A54: Q71 | B54: RKL | C54: WEST LONDON NHS TRUST | D54: Secondary Care Community Services | E54: 5 | F54: 0.8 | G54: 0 | H54: 4 | I54: 0 | J54: 0 | K54: 0 | L54: 0 | M54: 1
A55: Q71 | B55: RKL | C55: WEST LONDON NHS TRUST | D55: Specialist Services | E55: 74 | F55: 1 | G55: 0 | H55: 69 | I55: 5 | J55: 0 | K55: 0 | L55: 0 | M55: 0
A56: Q72 | B56: TAD | C56: BRADFORD DISTRICT CARE NHS FOUNDATION TRUST | D56: Acute Services | E56: 27 | F56: 0.962962963 | G56: 0.03703703704 | H56: 13 | I56: 13 | J56: 0 | K56: 0 | L56: 1 | M56: 0
A57: Q72 | B57: TAD | C57: BRADFORD DISTRICT CARE NHS FOUNDATION TRUST | D57: Child & Adolescent Mental Health Services | E57: 4 | F57: * | G57: * | H57: * | I57: * | J57: * | K57: * | L57: * | M57: *
A58: Q72 | B58: TAD | C58: BRADFORD DISTRICT CARE NHS FOUNDATION TRUST | D58: Mental Health Other | E58: 26 | F58: 0.9615384615 | G58: 0 | H58: 19 | I58: 6 | J58: 0 | K58: 0 | L58: 0 | M58: 1
A59: Q72 | B59: TAD | C59: BRADFORD DISTRICT CARE NHS FOUNDATION TRUST | D59: Secondary Care Community Services | E59: 11 | F59: 0.9090909091 | G59: 0.09090909091 | H59: 10 | I59: 0 | J59: 0 | K59: 0 | L59: 1 | M59: 0
A60: Q72 | B60: TAD | C60: BRADFORD DISTRICT CARE NHS FOUNDATION TRUST | D60: Specialist Services | E60: 1 | F60: * | G60: * | H60: * | I60: * | J60: * | K60: * | L60: * | M60: *
A61: Q72 | B61: RV9 | C61: HUMBER TEACHING NHS FOUNDATION TRUST | D61: Acute Services | E61: 4 | F61: * | G61: * | H61: * | I61: * | J61: * | K61: * | L61: * | M61: *
A62: Q72 | B62: RV9 | C62: HUMBER TEACHING NHS FOUNDATION TRUST | D62: Child & Adolescent Mental Health Services | E62: 6 | F62: 1 | G62: 0 | H62: 4 | I62: 2 | J62: 0 | K62: 0 | L62: 0 | M62: 0
A63: Q72 | B63: RV9 | C63: HUMBER TEACHING NHS FOUNDATION TRUST | D63: Primary Care | E63: 7 | F63: 1 | G63: 0 | H63: 6 | I63: 1 | J63: 0 | K63: 0 | L63: 0 | M63: 0
A64: Q72 | B64: RV9 | C64: HUMBER TEACHING NHS FOUNDATION TRUST | D64: Secondary Care Community Services | E64: 61 | F64: 0.9016393443 | G64: 0.06557377049 | H64: 44 | I64: 11 | J64: 1 | K64: 2 | L64: 2 | M64: 1
A65: Q72 | B65: RV9 | C65: HUMBER TEACHING NHS FOUNDATION TRUST | D65: Specialist Services | E65: 4 | F65: * | G65: * | H65: * | I65: * | J65: * | K65: * | L65: * | M65: *
A66: Q72 | B66: RGD | C66: LEEDS AND YORK PARTNERSHIP NHS FOUNDATION TRUST | D66: Acute Services | E66: 45 | F66: 0.7333333333 | G66: 0.1333333333 | H66: 21 | I66: 12 | J66: 4 | K66: 1 | L66: 5 | M66: 2
A67: Q72 | B67: RGD | C67: LEEDS AND YORK PARTNERSHIP NHS FOUNDATION TRUST | D67: Mental Health Other | E67: 10 | F67: 0.8 | G67: 0 | H67: * | I67: * | J67: * | K67: * | L67: * | M67: *
A68: Q72 | B68: RGD | C68: LEEDS AND YORK PARTNERSHIP NHS FOUNDATION TRUST | D68: Secondary Care Community Services | E68: 21 | F68: 0.7619047619 | G68: 0.09523809524 | H68: 10 | I68: 6 | J68: 2 | K68: 0 | L68: 2 | M68: 1
A69: Q72 | B69: RGD | C69: LEEDS AND YORK PARTNERSHIP NHS FOUNDATION TRUST | D69: Specialist Services | E69: 1 | F69: * | G69: * | H69: * | I69: * | J69: * | K69: * | L69: * | M69: *
A70: Q72 | B70: RXE | C70: ROTHERHAM DONCASTER AND SOUTH HUMBER NHS FOUNDATION TRUST | D70: Acute Services | E70: 4 | F70: * | G70: * | H70: * | I70: * | J70: * | K70: * | L70: * | M70: *
A71: Q72 | B71: RXE | C71: ROTHERHAM DONCASTER AND SOUTH HUMBER NHS FOUNDATION TRUST | D71: Child & Adolescent Mental Health Services | E71: 10 | F71: 1 | G71: 0 | H71: * | I71: * | J71: * | K71: * | L71: * | M71: *
A72: Q72 | B72: RXE | C72: ROTHERHAM DONCASTER AND SOUTH HUMBER NHS FOUNDATION TRUST | D72: Primary Care | E72: 70 | F72: 0.9714285714 | G72: 0.01428571429 | H72: 63 | I72: 5 | J72: 1 | K72: 0 | L72: 1 | M72: 0
A73: Q72 | B73: RXE | C73: ROTHERHAM DONCASTER AND SOUTH HUMBER NHS FOUNDATION TRUST | D73: Secondary Care Community Services | E73: 15 | F73: 0.9333333333 | G73: 0.06666666667 | H73: 12 | I73: 2 | J73: 0 | K73: 1 | L73: 0 | M73: 0
A74: Q72 | B74: RXE | C74: ROTHERHAM DONCASTER AND SOUTH HUMBER NHS FOUNDATION TRUST | D74: Specialist Services | E74: 11 | F74: 0.9090909091 | G74: 0.09090909091 | H74: 10 | I74: 0 | J74: 0 | K74: 0 | L74: 1 | M74: 0
A75: Q72 | B75: RCU | C75: SHEFFIELD CHILDREN'S NHS FOUNDATION TRUST | D75: Acute Services | E75: 1 | F75: * | G75: * | H75: * | I75: * | J75: * | K75: * | L75: * | M75: *
A76: Q72 | B76: RCU | C76: SHEFFIELD CHILDREN'S NHS FOUNDATION TRUST | D76: Child & Adolescent Mental Health Services | E76: 24 | F76: 0.9166666667 | G76: 0.04166666667 | H76: * | I76: * | J76: * | K76: * | L76: * | M76: *
A77: Q72 | B77: TAH | C77: SHEFFIELD HEALTH & SOCIAL CARE NHS FOUNDATION TRUST | D77: Mental Health Other | E77: 5 | F77: 1 | G77: 0 | H77: * | I77: * | J77: * | K77: * | L77: * | M77: *
A78: Q72 | B78: TAH | C78: SHEFFIELD HEALTH & SOCIAL CARE NHS FOUNDATION TRUST | D78: Primary Care | E78: 1 | F78: * | G78: * | H78: * | I78: * | J78: * | K78: * | L78: * | M78: *
A79: Q72 | B79: TAH | C79: SHEFFIELD HEALTH & SOCIAL CARE NHS FOUNDATION TRUST | D79: Secondary Care Community Services | E79: 131 | F79: 0.9465648855 | G79: 0.03816793893 | H79: 101 | I79: 23 | J79: 2 | K79: 1 | L79: 4 | M79: 0
A80: Q72 | B80: TAH | C80: SHEFFIELD HEALTH & SOCIAL CARE NHS FOUNDATION TRUST | D80: Specialist Services | E80: 10 | F80: 0.9 | G80: 0.1 | H80: 9 | I80: 0 | J80: 0 | K80: 0 | L80: 1 | M80: 0
A81: Q72 | B81: RXG | C81: SOUTH WEST YORKSHIRE PARTNERSHIP NHS FOUNDATION TRUST | D81: Acute Services | E81: 15 | F81: 0.9333333333 | G81: 0 | H81: 9 | I81: 5 | J81: 0 | K81: 0 | L81: 0 | M81: 1
A82: Q72 | B82: RXG | C82: SOUTH WEST YORKSHIRE PARTNERSHIP NHS FOUNDATION TRUST | D82: Child & Adolescent Mental Health Services | E82: 66 | F82: 0.8333333333 | G82: 0.04545454545 | H82: 50 | I82: 5 | J82: 5 | K82: 0 | L82: 3 | M82: 3
A83: Q72 | B83: RXG | C83: SOUTH WEST YORKSHIRE PARTNERSHIP NHS FOUNDATION TRUST | D83: Mental Health Other | E83: 54 | F83: 0.9814814815 | G83: 0.01851851852 | H83: 45 | I83: 8 | J83: 0 | K83: 1 | L83: 0 | M83: 0
A84: Q72 | B84: RXG | C84: SOUTH WEST YORKSHIRE PARTNERSHIP NHS FOUNDATION TRUST | D84: Primary Care | E84: 7 | F84: 1 | G84: 0 | H84: 6 | I84: 1 | J84: 0 | K84: 0 | L84: 0 | M84: 0
A85: Q72 | B85: RXG | C85: SOUTH WEST YORKSHIRE PARTNERSHIP NHS FOUNDATION TRUST | D85: Secondary Care Community Services | E85: 263 | F85: 0.8935361217 | G85: 0.0608365019 | H85: 190 | I85: 45 | J85: 3 | K85: 8 | L85: 8 | M85: 9
A86: Q72 | B86: RXG | C86: SOUTH WEST YORKSHIRE PARTNERSHIP NHS FOUNDATION TRUST | D86: Specialist Services | E86: 10 | F86: 0.8 | G86: 0.1 | H86: 6 | I86: 2 | J86: 0 | K86: 0 | L86: 1 | M86: 1
A87: Q74 | B87: RNN | C87: CUMBRIA PARTNERSHIP NHS FOUNDATION TRUST | D87: Acute Services | E87: 26 | F87: 0.8461538462 | G87: 0.1538461538 | H87: 18 | I87: 4 | J87: 0 | K87: 1 | L87: 3 | M87: 0
A88: Q74 | B88: RNN | C88: CUMBRIA PARTNERSHIP NHS FOUNDATION TRUST | D88: Primary Care | E88: 59 | F88: 0.9830508475 | G88: 0 | H88: 54 | I88: 4 | J88: 1 | K88: 0 | L88: 0 | M88: 0
A89: Q74 | B89: RNN | C89: CUMBRIA PARTNERSHIP NHS FOUNDATION TRUST | D89: Secondary Care Community Services | E89: 34 | F89: 1 | G89: 0 | H89: 19 | I89: 15 | J89: 0 | K89: 0 | L89: 0 | M89: 0
A90: Q74 | B90: RR7 | C90: GATESHEAD HEALTH NHS FOUNDATION TRUST | D90: Secondary Care Community Services | E90: 78 | F90: 1 | G90: 0 | H90: 78 | I90: 0 | J90: 0 | K90: 0 | L90: 0 | M90: 0
A91: Q74 | B91: RX4 | C91: NORTHUMBERLAND, TYNE AND WEAR NHS FOUNDATION TRUST | D91: Acute Services | E91: 24 | F91: 0.6666666667 | G91: 0.1666666667 | H91: 9 | I91: 7 | J91: 4 | K91: 2 | L91: 2 | M91: 0
A92: Q74 | B92: RX4 | C92: NORTHUMBERLAND, TYNE AND WEAR NHS FOUNDATION TRUST | D92: Child & Adolescent Mental Health Services | E92: 40 | F92: 0.775 | G92: 0.075 | H92: 21 | I92: 10 | J92: 5 | K92: 0 | L92: 3 | M92: 1
A93: Q74 | B93: RX4 | C93: NORTHUMBERLAND, TYNE AND WEAR NHS FOUNDATION TRUST | D93: Mental Health Other | E93: 17 | F93: 0.8823529412 | G93: 0.1176470588 | H93: 11 | I93: 4 | J93: 0 | K93: 1 | L93: 1 | M93: 0
A94: Q74 | B94: RX4 | C94: NORTHUMBERLAND, TYNE AND WEAR NHS FOUNDATION TRUST | D94: Secondary Care Community Services | E94: 235 | F94: 0.8382978723 | G94: 0.08936170213 | H94: 137 | I94: 60 | J94: 13 | K94: 10 | L94: 11 | M94: 4
A95: Q74 | B95: RX4 | C95: NORTHUMBERLAND, TYNE AND WEAR NHS FOUNDATION TRUST | D95: Specialist Services | E95: 78 | F95: 0.9487179487 | G95: 0.05128205128 | H95: 62 | I95: 12 | J95: 0 | K95: 2 | L95: 2 | M95: 0
A96: Q74 | B96: RTF | C96: NORTHUMBRIA HEALTHCARE NHS FOUNDATION TRUST | D96: Primary Care | E96: 11 | F96: 0.9090909091 | G96: 0 | H96: 10 | I96: 0 | J96: 0 | K96: 0 | L96: 0 | M96: 1
A97: Q74 | B97: RTF | C97: NORTHUMBRIA HEALTHCARE NHS FOUNDATION TRUST | D97: Secondary Care Community Services | E97: 22 | F97: 1 | G97: 0 | H97: 20 | I97: 2 | J97: 0 | K97: 0 | L97: 0 | M97: 0
A98: Q74 | B98: RE9 | C98: SOUTH TYNESIDE NHS FOUNDATION TRUST | D98: Child & Adolescent Mental Health Services | E98: 38 | F98: 1 | G98: 0 | H98: 29 | I98: 9 | J98: 0 | K98: 0 | L98: 0 | M98: 0
A99: Q74 | B99: RX3 | C99: TEES, ESK AND WEAR VALLEYS NHS FOUNDATION TRUST | D99: Acute Services | E99: 141 | F99: 0.865248227 | G99: 0.05673758865 | H99: 77 | I99: 45 | J99: 9 | K99: 6 | L99: 2 | M99: 2
A100: Q74 | B100: RX3 | C100: TEES, ESK AND WEAR VALLEYS NHS FOUNDATION TRUST | D100: Child & Adolescent Mental Health Services | E100: 337 | F100: 0.8516320475 | G100: 0.04154302671 | H100: 155 | I100: 132 | J100: 23 | K100: 6 | L100: 8 | M100: 13
A101: Q74 | B101: RX3 | C101: TEES, ESK AND WEAR VALLEYS NHS FOUNDATION TRUST | D101: Mental Health Other | E101: 22 | F101: 0.8636363636 | G101: 0 | H101: 16 | I101: 3 | J101: 2 | K101: 0 | L101: 0 | M101: 1
A102: Q74 | B102: RX3 | C102: TEES, ESK AND WEAR VALLEYS NHS FOUNDATION TRUST | D102: Primary Care | E102: 240 | F102: 0.9375 | G102: 0.02083333333 | H102: 139 | I102: 86 | J102: 8 | K102: 4 | L102: 1 | M102: 2
A103: Q74 | B103: RX3 | C103: TEES, ESK AND WEAR VALLEYS NHS FOUNDATION TRUST | D103: Secondary Care Community Services | E103: 769 | F103: 0.8920676203 | G103: 0.03250975293 | H103: 432 | I103: 254 | J103: 31 | K103: 9 | L103: 16 | M103: 27
A104: Q74 | B104: RX3 | C104: TEES, ESK AND WEAR VALLEYS NHS FOUNDATION TRUST | D104: Secure & Forensic Services | E104: 216 | F104: 0.7268518519 | G104: 0.1435185185 | H104: 85 | I104: 72 | J104: 21 | K104: 13 | L104: 18 | M104: 7
A105: Q74 | B105: RX3 | C105: TEES, ESK AND WEAR VALLEYS NHS FOUNDATION TRUST | D105: Specialist Services | E105: 99 | F105: 0.8585858586 | G105: 0.06060606061 | H105: 46 | I105: 39 | J105: 5 | K105: 4 | L105: 2 | M105: 3
A106: Q75 | B106: RBS | C106: ALDER HEY CHILDREN'S NHS FOUNDATION TRUST | D106: Child & Adolescent Mental Health Services | E106: 34 | F106: 1 | G106: 0 | H106: 30 | I106: 4 | J106: 0 | K106: 0 | L106: 0 | M106: 0
A107: Q75 | B107: RXA | C107: CHESHIRE AND WIRRAL PARTNERSHIP NHS FOUNDATION TRUST | D107: Acute Services | E107: 14 | F107: 0.9285714286 | G107: 0 | H107: 8 | I107: 5 | J107: 1 | K107: 0 | L107: 0 | M107: 0
A108: Q75 | B108: RXA | C108: CHESHIRE AND WIRRAL PARTNERSHIP NHS FOUNDATION TRUST | D108: Child & Adolescent Mental Health Services | E108: 27 | F108: 0.8888888889 | G108: 0 | H108: 2 | I108: 22 | J108: 2 | K108: 0 | L108: 0 | M108: 1
A109: Q75 | B109: RXA | C109: CHESHIRE AND WIRRAL PARTNERSHIP NHS FOUNDATION TRUST | D109: Mental Health Other | E109: 5 | F109: 1 | G109: 0 | H109: 5 | I109: 0 | J109: 0 | K109: 0 | L109: 0 | M109: 0
A110: Q75 | B110: RXA | C110: CHESHIRE AND WIRRAL PARTNERSHIP NHS FOUNDATION TRUST | D110: Primary Care | E110: 1 | F110: * | G110: * | H110: * | I110: * | J110: * | K110: * | L110: * | M110: *
A111: Q75 | B111: RXA | C111: CHESHIRE AND WIRRAL PARTNERSHIP NHS FOUNDATION TRUST | D111: Secondary Care Community Services | E111: 32 | F111: 0.9375 | G111: 0.0625 | H111: 23 | I111: 7 | J111: 0 | K111: 2 | L111: 0 | M111: 0
A112: Q75 | B112: RXA | C112: CHESHIRE AND WIRRAL PARTNERSHIP NHS FOUNDATION TRUST | D112: Specialist Services | E112: 4 | F112: * | G112: * | H112: * | I112: * | J112: * | K112: * | L112: * | M112: *
A113: Q75 | B113: RW4 | C113: MERSEY CARE NHS FOUNDATION TRUST | D113: Acute Services | E113: 111 | F113: 0.9189189189 | G113: 0.01801801802 | H113: 49 | I113: 53 | J113: 7 | K113: 2 | L113: 0 | M113: 0
A114: Q75 | B114: RW4 | C114: MERSEY CARE NHS FOUNDATION TRUST | D114: Primary Care | E114: 54 | F114: 0.9444444444 | G114: 0.01851851852 | H114: 36 | I114: 15 | J114: 2 | K114: 1 | L114: 0 | M114: 0
A115: Q75 | B115: RW4 | C115: MERSEY CARE NHS FOUNDATION TRUST | D115: Secondary Care Community Services | E115: 81 | F115: 0.9012345679 | G115: 0.06172839506 | H115: 37 | I115: 36 | J115: 2 | K115: 0 | L115: 5 | M115: 1
A116: Q75 | B116: RW4 | C116: MERSEY CARE NHS FOUNDATION TRUST | D116: Secure & Forensic Services | E116: 94 | F116: 0.8085106383 | G116: 0.02127659574 | H116: 31 | I116: 45 | J116: 15 | K116: 1 | L116: 1 | M116: 1
A117: Q75 | B117: RTV | C117: NORTH WEST BOROUGHS HEALTHCARE NHS FOUNDATION TRUST | D117: Acute Services | E117: 85 | F117: 0.9647058824 | G117: 0 | H117: 64 | I117: 18 | J117: 3 | K117: 0 | L117: 0 | M117: 0
A118: Q75 | B118: RTV | C118: NORTH WEST BOROUGHS HEALTHCARE NHS FOUNDATION TRUST | D118: Primary Care | E118: 60 | F118: 0.9 | G118: 0.01666666667 | H118: 35 | I118: 19 | J118: 1 | K118: 1 | L118: 0 | M118: 4
A119: Q75 | B119: RTV | C119: NORTH WEST BOROUGHS HEALTHCARE NHS FOUNDATION TRUST | D119: Secondary Care Community Services | E119: 87 | F119: 0.9655172414 | G119: 0 | H119: 59 | I119: 25 | J119: 2 | K119: 0 | L119: 0 | M119: 1
A120: Q75 | B120: RTV | C120: NORTH WEST BOROUGHS HEALTHCARE NHS FOUNDATION TRUST | D120: Specialist Services | E120: 28 | F120: 0.9285714286 | G120: 0.03571428571 | H120: 19 | I120: 7 | J120: 0 | K120: 0 | L120: 1 | M120: 1
A121: Q76 | B121: RXM | C121: DERBYSHIRE HEALTHCARE NHS FOUNDATION TRUST | D121: Acute Services | E121: 5 | F121: 1 | G121: 0 | H121: * | I121: * | J121: * | K121: * | L121: * | M121: *
A122: Q76 | B122: RXM | C122: DERBYSHIRE HEALTHCARE NHS FOUNDATION TRUST | D122: Primary Care | E122: 217 | F122: 0.9953917051 | G122: 0 | H122: 186 | I122: 30 | J122: 0 | K122: 0 | L122: 0 | M122: 1
A123: Q76 | B123: RXM | C123: DERBYSHIRE HEALTHCARE NHS FOUNDATION TRUST | D123: Secondary Care Community Services | E123: 62 | F123: 0.8870967742 | G123: 0 | H123: 38 | I123: 17 | J123: 3 | K123: 0 | L123: 0 | M123: 4
A124: Q76 | B124: RXM | C124: DERBYSHIRE HEALTHCARE NHS FOUNDATION TRUST | D124: Specialist Services | E124: 4 | F124: * | G124: * | H124: * | I124: * | J124: * | K124: * | L124: * | M124: *
A125: Q76 | B125: RRE | C125: MIDLANDS PARTNERSHIP NHS FOUNDATION TRUST | D125: Acute Services | E125: 31 | F125: 0.8387096774 | G125: 0.03225806452 | H125: 17 | I125: 9 | J125: 3 | K125: 1 | L125: 0 | M125: 1
A126: Q76 | B126: RRE | C126: MIDLANDS PARTNERSHIP NHS FOUNDATION TRUST | D126: Child & Adolescent Mental Health Services | E126: 3 | F126: * | G126: * | H126: * | I126: * | J126: * | K126: * | L126: * | M126: *
A127: Q76 | B127: RRE | C127: MIDLANDS PARTNERSHIP NHS FOUNDATION TRUST | D127: Mental Health Other | E127: 26 | F127: 0.9230769231 | G127: 0 | H127: 19 | I127: 5 | J127: 2 | K127: 0 | L127: 0 | M127: 0
A128: Q76 | B128: RRE | C128: MIDLANDS PARTNERSHIP NHS FOUNDATION TRUST | D128: Primary Care | E128: 17 | F128: 0.9411764706 | G128: 0 | H128: 14 | I128: 2 | J128: 1 | K128: 0 | L128: 0 | M128: 0
A129: Q76 | B129: RRE | C129: MIDLANDS PARTNERSHIP NHS FOUNDATION TRUST | D129: Secondary Care Community Services | E129: 47 | F129: 0.8936170213 | G129: 0.04255319149 | H129: 29 | I129: 13 | J129: 2 | K129: 0 | L129: 2 | M129: 1
A130: Q76 | B130: RRE | C130: MIDLANDS PARTNERSHIP NHS FOUNDATION TRUST | D130: Specialist Services | E130: 5 | F130: 0.8 | G130: 0 | H130: * | I130: * | J130: * | K130: * | L130: * | M130: *
A131: Q76 | B131: RLY | C131: NORTH STAFFORDSHIRE COMBINED HEALTHCARE NHS TRUST | D131: Acute Services | E131: 47 | F131: 0.7872340426 | G131: 0.06382978723 | H131: 27 | I131: 10 | J131: 2 | K131: 2 | L131: 1 | M131: 5
A132: Q76 | B132: RLY | C132: NORTH STAFFORDSHIRE COMBINED HEALTHCARE NHS TRUST | D132: Child & Adolescent Mental Health Services | E132: 30 | F132: 0.9333333333 | G132: 0 | H132: * | I132: * | J132: * | K132: * | L132: * | M132: *
A133: Q76 | B133: RLY | C133: NORTH STAFFORDSHIRE COMBINED HEALTHCARE NHS TRUST | D133: Mental Health Other | E133: 1 | F133: * | G133: * | H133: * | I133: * | J133: * | K133: * | L133: * | M133: *
A134: Q76 | B134: RLY | C134: NORTH STAFFORDSHIRE COMBINED HEALTHCARE NHS TRUST | D134: Secondary Care Community Services | E134: 113 | F134: 0.9292035398 | G134: 0.05309734513 | H134: 72 | I134: 33 | J134: 1 | K134: 2 | L134: 4 | M134: 1
A135: Q76 | B135: RHA | C135: NOTTINGHAMSHIRE HEALTHCARE NHS FOUNDATION TRUST | D135: Acute Services | E135: 15 | F135: 0.8666666667 | G135: 0.1333333333 | H135: 9 | I135: 4 | J135: 0 | K135: 1 | L135: 1 | M135: 0
A136: Q76 | B136: RHA | C136: NOTTINGHAMSHIRE HEALTHCARE NHS FOUNDATION TRUST | D136: Child & Adolescent Mental Health Services | E136: 8 | F136: 0.875 | G136: 0 | H136: 6 | I136: 1 | J136: 1 | K136: 0 | L136: 0 | M136: 0
A137: Q76 | B137: RHA | C137: NOTTINGHAMSHIRE HEALTHCARE NHS FOUNDATION TRUST | D137: Primary Care | E137: 24 | F137: 0.9166666667 | G137: 0 | H137: 20 | I137: 2 | J137: 2 | K137: 0 | L137: 0 | M137: 0
A138: Q76 | B138: RHA | C138: NOTTINGHAMSHIRE HEALTHCARE NHS FOUNDATION TRUST | D138: Secondary Care Community Services | E138: 42 | F138: 0.9523809524 | G138: 0.02380952381 | H138: 26 | I138: 14 | J138: 1 | K138: 1 | L138: 0 | M138: 0
A139: Q76 | B139: RHA | C139: NOTTINGHAMSHIRE HEALTHCARE NHS FOUNDATION TRUST | D139: Secure & Forensic Services | E139: 100 | F139: 0.65 | G139: 0.14 | H139: 27 | I139: 38 | J139: 12 | K139: 5 | L139: 9 | M139: 9
A140: Q77 | B140: RXT | C140: BIRMINGHAM AND SOLIHULL MENTAL HEALTH NHS FOUNDATION TRUST | D140: Acute Services | E140: 126 | F140: 0.8888888889 | G140: 0.04761904762 | H140: 71 | I140: 41 | J140: 6 | K140: 2 | L140: 4 | M140: 2
A141: Q77 | B141: RXT | C141: BIRMINGHAM AND SOLIHULL MENTAL HEALTH NHS FOUNDATION TRUST | D141: Child & Adolescent Mental Health Services | E141: 1 | F141: * | G141: * | H141: * | I141: * | J141: * | K141: * | L141: * | M141: *
A142: Q77 | B142: RXT | C142: BIRMINGHAM AND SOLIHULL MENTAL HEALTH NHS FOUNDATION TRUST | D142: Mental Health Other | E142: 15 | F142: 1 | G142: 0 | H142: * | I142: * | J142: * | K142: * | L142: * | M142: *
A143: Q77 | B143: RXT | C143: BIRMINGHAM AND SOLIHULL MENTAL HEALTH NHS FOUNDATION TRUST | D143: Primary Care | E143: 74 | F143: 0.972972973 | G143: 0 | H143: 46 | I143: 26 | J143: 2 | K143: 0 | L143: 0 | M143: 0
A144: Q77 | B144: RXT | C144: BIRMINGHAM AND SOLIHULL MENTAL HEALTH NHS FOUNDATION TRUST | D144: Secondary Care Community Services | E144: 87 | F144: 0.8620689655 | G144: 0.05747126437 | H144: 57 | I144: 18 | J144: 5 | K144: 3 | L144: 2 | M144: 2
A145: Q77 | B145: RXT | C145: BIRMINGHAM AND SOLIHULL MENTAL HEALTH NHS FOUNDATION TRUST | D145: Secure & Forensic Services | E145: 31 | F145: 0.9677419355 | G145: 0 | H145: 14 | I145: 16 | J145: 0 | K145: 0 | L145: 0 | M145: 1
A146: Q77 | B146: RXT | C146: BIRMINGHAM AND SOLIHULL MENTAL HEALTH NHS FOUNDATION TRUST | D146: Specialist Services | E146: 81 | F146: 0.950617284 | G146: 0.01234567901 | H146: 62 | I146: 15 | J146: 2 | K146: 1 | L146: 0 | M146: 1
A147: Q77 | B147: RQ3 | C147: BIRMINGHAM WOMEN'S AND CHILDREN'S NHS FOUNDATION TRUST | D147: Child & Adolescent Mental Health Services | E147: 9 | F147: 0.6666666667 | G147: 0 | H147: 4 | I147: 2 | J147: 2 | K147: 0 | L147: 0 | M147: 1
A148: Q77 | B148: TAJ | C148: BLACK COUNTRY PARTNERSHIP NHS FOUNDATION TRUST | D148: Mental Health Other | E148: 50 | F148: 0.96 | G148: 0.02 | H148: 40 | I148: 8 | J148: 1 | K148: 0 | L148: 1 | M148: 0
A149: Q77 | B149: RYG | C149: COVENTRY AND WARWICKSHIRE PARTNERSHIP NHS TRUST | D149: Acute Services | E149: 3 | F149: * | G149: * | H149: * | I149: * | J149: * | K149: * | L149: * | M149: *
A150: Q77 | B150: RYG | C150: COVENTRY AND WARWICKSHIRE PARTNERSHIP NHS TRUST | D150: Child & Adolescent Mental Health Services | E150: 52 | F150: 0.9423076923 | G150: 0 | H150: 26 | I150: 23 | J150: 2 | K150: 0 | L150: 0 | M150: 1
A151: Q77 | B151: RYG | C151: COVENTRY AND WARWICKSHIRE PARTNERSHIP NHS TRUST | D151: Mental Health Other | E151: 24 | F151: 0.875 | G151: 0 | H151: 15 | I151: 6 | J151: 1 | K151: 0 | L151: 0 | M151: 2
A152: Q77 | B152: RYG | C152: COVENTRY AND WARWICKSHIRE PARTNERSHIP NHS TRUST | D152: Primary Care | E152: 1 | F152: * | G152: * | H152: * | I152: * | J152: * | K152: * | L152: * | M152: *
A153: Q77 | B153: RYG | C153: COVENTRY AND WARWICKSHIRE PARTNERSHIP NHS TRUST | D153: Secondary Care Community Services | E153: 44 | F153: 0.8181818182 | G153: 0.06818181818 | H153: 30 | I153: 6 | J153: 3 | K153: 2 | L153: 1 | M153: 2
A154: Q77 | B154: RYG | C154: COVENTRY AND WARWICKSHIRE PARTNERSHIP NHS TRUST | D154: Specialist Services | E154: 6 | F154: 1 | G154: 0 | H154: 6 | I154: 0 | J154: 0 | K154: 0 | L154: 0 | M154: 0
A155: Q77 | B155: RYK | C155: DUDLEY AND WALSALL MENTAL HEALTH PARTNERSHIP NHS TRUST | D155: Secondary Care Community Services | E155: 118 | F155: 0.7203389831 | G155: 0.008474576271 | H155: 42 | I155: 43 | J155: 8 | K155: 1 | L155: 0 | M155: 24
A156: Q77 | B156: R1A | C156: WORCESTERSHIRE HEALTH AND CARE NHS TRUST | D156: Acute Services | E156: 17 | F156: 0.9411764706 | G156: 0.05882352941 | H156: 13 | I156: 3 | J156: 0 | K156: 0 | L156: 1 | M156: 0
A157: Q77 | B157: R1A | C157: WORCESTERSHIRE HEALTH AND CARE NHS TRUST | D157: Child & Adolescent Mental Health Services | E157: 14 | F157: 0.6428571429 | G157: 0.1428571429 | H157: 7 | I157: 2 | J157: 3 | K157: 1 | L157: 1 | M157: 0
A158: Q77 | B158: R1A | C158: WORCESTERSHIRE HEALTH AND CARE NHS TRUST | D158: Primary Care | E158: 24 | F158: 1 | G158: 0 | H158: 13 | I158: 11 | J158: 0 | K158: 0 | L158: 0 | M158: 0
A159: Q77 | B159: R1A | C159: WORCESTERSHIRE HEALTH AND CARE NHS TRUST | D159: Secondary Care Community Services | E159: 87 | F159: 0.9195402299 | G159: 0.02298850575 | H159: 56 | I159: 24 | J159: 3 | K159: 1 | L159: 1 | M159: 2
A160: Q77 | B160: R1A | C160: WORCESTERSHIRE HEALTH AND CARE NHS TRUST | D160: Specialist Services | E160: 5 | F160: 1 | G160: 0 | H160: 3 | I160: 2 | J160: 0 | K160: 0 | L160: 0 | M160: 0
A161: Q78 | B161: RY4 | C161: HERTFORDSHIRE COMMUNITY NHS TRUST | D161: Child & Adolescent Mental Health Services | E161: 53 | F161: 0.9433962264 | G161: 0 | H161: 25 | I161: 25 | J161: 2 | K161: 0 | L161: 0 | M161: 1
A162: Q78 | B162: RWR | C162: HERTFORDSHIRE PARTNERSHIP UNIVERSITY NHS FOUNDATION TRUST | D162: Acute Services | E162: 102 | F162: 0.8529411765 | G162: 0.06862745098 | H162: 53 | I162: 34 | J162: 7 | K162: 6 | L162: 1 | M162: 1
A163: Q78 | B163: RWR | C163: HERTFORDSHIRE PARTNERSHIP UNIVERSITY NHS FOUNDATION TRUST | D163: Child & Adolescent Mental Health Services | E163: 122 | F163: 0.8278688525 | G163: 0.04918032787 | H163: 34 | I163: 67 | J163: 9 | K163: 1 | L163: 5 | M163: 6
A164: Q78 | B164: RWR | C164: HERTFORDSHIRE PARTNERSHIP UNIVERSITY NHS FOUNDATION TRUST | D164: Primary Care | E164: 92 | F164: 0.9673913043 | G164: 0.02173913043 | H164: 53 | I164: 36 | J164: 1 | K164: 0 | L164: 2 | M164: 0
A165: Q78 | B165: RWR | C165: HERTFORDSHIRE PARTNERSHIP UNIVERSITY NHS FOUNDATION TRUST | D165: Secondary Care Community Services | E165: 76 | F165: 0.9210526316 | G165: 0.01315789474 | H165: 39 | I165: 31 | J165: 5 | K165: 1 | L165: 0 | M165: 0
A166: Q78 | B166: RWR | C166: HERTFORDSHIRE PARTNERSHIP UNIVERSITY NHS FOUNDATION TRUST | D166: Secure & Forensic Services | E166: 8 | F166: 0.75 | G166: 0.125 | H166: 4 | I166: 2 | J166: 1 | K166: 1 | L166: 0 | M166: 0
A167: Q78 | B167: RWR | C167: HERTFORDSHIRE PARTNERSHIP UNIVERSITY NHS FOUNDATION TRUST | D167: Specialist Services | E167: 23 | F167: 1 | G167: 0 | H167: 11 | I167: 12 | J167: 0 | K167: 0 | L167: 0 | M167: 0
A168: Q78 | B168: RT5 | C168: LEICESTERSHIRE PARTNERSHIP NHS TRUST | D168: Acute Services | E168: 15 | F168: 1 | G168: 0 | H168: 8 | I168: 7 | J168: 0 | K168: 0 | L168: 0 | M168: 0
A169: Q78 | B169: RT5 | C169: LEICESTERSHIRE PARTNERSHIP NHS TRUST | D169: Child & Adolescent Mental Health Services | E169: 31 | F169: 0.935483871 | G169: 0 | H169: 22 | I169: 7 | J169: 0 | K169: 0 | L169: 0 | M169: 2
A170: Q78 | B170: RT5 | C170: LEICESTERSHIRE PARTNERSHIP NHS TRUST | D170: Mental Health Other | E170: 7 | F170: 0.8571428571 | G170: 0 | H170: 5 | I170: 1 | J170: 1 | K170: 0 | L170: 0 | M170: 0
A171: Q78 | B171: RT5 | C171: LEICESTERSHIRE PARTNERSHIP NHS TRUST | D171: Secondary Care Community Services | E171: 48 | F171: 0.9583333333 | G171: 0.02083333333 | H171: 32 | I171: 14 | J171: 1 | K171: 1 | L171: 0 | M171: 0
A172: Q78 | B172: RT5 | C172: LEICESTERSHIRE PARTNERSHIP NHS TRUST | D172: Specialist Services | E172: 11 | F172: 1 | G172: 0 | H172: 7 | I172: 4 | J172: 0 | K172: 0 | L172: 0 | M172: 0
A173: Q78 | B173: RP7 | C173: LINCOLNSHIRE PARTNERSHIP NHS FOUNDATION TRUST | D173: Acute Services | E173: 66 | F173: 0.8636363636 | G173: 0.04545454545 | H173: 35 | I173: 22 | J173: 2 | K173: 0 | L173: 3 | M173: 4
A174: Q78 | B174: RP7 | C174: LINCOLNSHIRE PARTNERSHIP NHS FOUNDATION TRUST | D174: Child & Adolescent Mental Health Services | E174: 63 | F174: 0.8571428571 | G174: 0.03174603175 | H174: 54 | I174: 0 | J174: 6 | K174: 0 | L174: 2 | M174: 1
A175: Q78 | B175: RP7 | C175: LINCOLNSHIRE PARTNERSHIP NHS FOUNDATION TRUST | D175: Mental Health Other | E175: 30 | F175: 0.8 | G175: 0.03333333333 | H175: * | I175: * | J175: * | K175: * | L175: * | M175: *
A176: Q78 | B176: RP7 | C176: LINCOLNSHIRE PARTNERSHIP NHS FOUNDATION TRUST | D176: Primary Care | E176: 152 | F176: 0.9210526316 | G176: 0.006578947368 | H176: 111 | I176: 29 | J176: 10 | K176: 0 | L176: 1 | M176: 1
A177: Q78 | B177: RP7 | C177: LINCOLNSHIRE PARTNERSHIP NHS FOUNDATION TRUST | D177: Secondary Care Community Services | E177: 216 | F177: 0.962962963 | G177: 0.009259259259 | H177: 164 | I177: 44 | J177: 2 | K177: 2 | L177: 0 | M177: 4
A178: Q78 | B178: RP7 | C178: LINCOLNSHIRE PARTNERSHIP NHS FOUNDATION TRUST | D178: Secure & Forensic Services | E178: 4 | F178: * | G178: * | H178: * | I178: * | J178: * | K178: * | L178: * | M178: *
A179: Q78 | B179: RP1 | C179: NORTHAMPTONSHIRE HEALTHCARE NHS FOUNDATION TRUST | D179: Acute Services | E179: 60 | F179: 0.8666666667 | G179: 0.03333333333 | H179: 34 | I179: 18 | J179: 3 | K179: 2 | L179: 0 | M179: 3
A180: Q78 | B180: RP1 | C180: NORTHAMPTONSHIRE HEALTHCARE NHS FOUNDATION TRUST | D180: Child & Adolescent Mental Health Services | E180: 127 | F180: 0.905511811 | G180: 0 | H180: 86 | I180: 29 | J180: 6 | K180: 0 | L180: 0 | M180: 6
A181: Q78 | B181: RP1 | C181: NORTHAMPTONSHIRE HEALTHCARE NHS FOUNDATION TRUST | D181: Primary Care | E181: 8 | F181: 1 | G181: 0 | H181: 7 | I181: 1 | J181: 0 | K181: 0 | L181: 0 | M181: 0
A182: Q78 | B182: RP1 | C182: NORTHAMPTONSHIRE HEALTHCARE NHS FOUNDATION TRUST | D182: Secondary Care Community Services | E182: 138 | F182: 0.9565217391 | G182: 0.007246376812 | H182: 102 | I182: 30 | J182: 2 | K182: 1 | L182: 0 | M182: 3
A183: Q78 | B183: RP1 | C183: NORTHAMPTONSHIRE HEALTHCARE NHS FOUNDATION TRUST | D183: Secure & Forensic Services | E183: 57 | F183: 0.8947368421 | G183: 0.0350877193 | H183: 39 | I183: 12 | J183: 2 | K183: 1 | L183: 1 | M183: 2
A184: Q78 | B184: RP1 | C184: NORTHAMPTONSHIRE HEALTHCARE NHS FOUNDATION TRUST | D184: Specialist Services | E184: 105 | F184: 0.8952380952 | G184: 0.05714285714 | H184: 71 | I184: 23 | J184: 5 | K184: 2 | L184: 4 | M184: 0
A185: Q79 | B185: RT1 | C185: CAMBRIDGESHIRE AND PETERBOROUGH NHS FOUNDATION TRUST | D185: Acute Services | E185: 95 | F185: 0.7157894737 | G185: 0.1052631579 | H185: 36 | I185: 32 | J185: 12 | K185: 4 | L185: 6 | M185: 5
A186: Q79 | B186: RT1 | C186: CAMBRIDGESHIRE AND PETERBOROUGH NHS FOUNDATION TRUST | D186: Child & Adolescent Mental Health Services | E186: 29 | F186: 0.8275862069 | G186: 0.03448275862 | H186: 16 | I186: 8 | J186: 3 | K186: 0 | L186: 1 | M186: 1
A187: Q79 | B187: RT1 | C187: CAMBRIDGESHIRE AND PETERBOROUGH NHS FOUNDATION TRUST | D187: Mental Health Other | E187: 2 | F187: * | G187: * | H187: * | I187: * | J187: * | K187: * | L187: * | M187: *
A188: Q79 | B188: RT1 | C188: CAMBRIDGESHIRE AND PETERBOROUGH NHS FOUNDATION TRUST | D188: Primary Care | E188: 43 | F188: 1 | G188: 0 | H188: 41 | I188: 2 | J188: 0 | K188: 0 | L188: 0 | M188: 0
A189: Q79 | B189: RT1 | C189: CAMBRIDGESHIRE AND PETERBOROUGH NHS FOUNDATION TRUST | D189: Secondary Care Community Services | E189: 114 | F189: 0.9649122807 | G189: 0.008771929825 | H189: 82 | I189: 28 | J189: 0 | K189: 0 | L189: 1 | M189: 3
A190: Q79 | B190: RT1 | C190: CAMBRIDGESHIRE AND PETERBOROUGH NHS FOUNDATION TRUST | D190: Specialist Services | E190: 13 | F190: 1 | G190: 0 | H190: * | I190: * | J190: * | K190: * | L190: * | M190: *
A191: Q79 | B191: R1L | C191: ESSEX PARTNERSHIP UNIVERSITY NHS FOUNDATION TRUST | D191: Acute Services | E191: 28 | F191: 0.9642857143 | G191: 0 | H191: 15 | I191: 12 | J191: 0 | K191: 0 | L191: 0 | M191: 1
A192: Q79 | B192: R1L | C192: ESSEX PARTNERSHIP UNIVERSITY NHS FOUNDATION TRUST | D192: Child & Adolescent Mental Health Services | E192: 1 | F192: * | G192: * | H192: * | I192: * | J192: * | K192: * | L192: * | M192: *
A193: Q79 | B193: R1L | C193: ESSEX PARTNERSHIP UNIVERSITY NHS FOUNDATION TRUST | D193: Secondary Care Community Services | E193: 25 | F193: 0.84 | G193: 0.08 | H193: * | I193: * | J193: * | K193: * | L193: * | M193: *
A194: Q79 | B194: R1L | C194: ESSEX PARTNERSHIP UNIVERSITY NHS FOUNDATION TRUST | D194: Specialist Services | E194: 36 | F194: 0.9722222222 | G194: 0 | H194: 24 | I194: 11 | J194: 1 | K194: 0 | L194: 0 | M194: 0
A195: Q79 | B195: RMY | C195: NORFOLK AND SUFFOLK NHS FOUNDATION TRUST | D195: Acute Services | E195: 55 | F195: 0.8545454545 | G195: 0.05454545455 | H195: 25 | I195: 22 | J195: 3 | K195: 2 | L195: 1 | M195: 2
A196: Q79 | B196: RMY | C196: NORFOLK AND SUFFOLK NHS FOUNDATION TRUST | D196: Child & Adolescent Mental Health Services | E196: 6 | F196: 1 | G196: 0 | H196: * | I196: * | J196: * | K196: * | L196: * | M196: *
A197: Q79 | B197: RMY | C197: NORFOLK AND SUFFOLK NHS FOUNDATION TRUST | D197: Mental Health Other | E197: 1 | F197: * | G197: * | H197: * | I197: * | J197: * | K197: * | L197: * | M197: *
A198: Q79 | B198: RMY | C198: NORFOLK AND SUFFOLK NHS FOUNDATION TRUST | D198: Primary Care | E198: 10 | F198: 0.9 | G198: 0.1 | H198: 8 | I198: 1 | J198: 0 | K198: 0 | L198: 1 | M198: 0
A199: Q79 | B199: RMY | C199: NORFOLK AND SUFFOLK NHS FOUNDATION TRUST | D199: Secondary Care Community Services | E199: 75 | F199: 0.9066666667 | G199: 0.02666666667 | H199: 50 | I199: 18 | J199: 2 | K199: 1 | L199: 1 | M199: 3
A200: Q79 | B200: RMY | C200: NORFOLK AND SUFFOLK NHS FOUNDATION TRUST | D200: Specialist Services | E200: 23 | F200: 0.9130434783 | G200: 0 | H200: 16 | I200: 5 | J200: 2 | K200: 0 | L200: 0 | M200: 0
A201: Q83 | B201: RXV | C201: GREATER MANCHESTER MENTAL HEALTH NHS FOUNDATION TRUST | D201: Acute Services | E201: 3 | F201: * | G201: * | H201: * | I201: * | J201: * | K201: * | L201: * | M201: *
A202: Q83 | B202: RXV | C202: GREATER MANCHESTER MENTAL HEALTH NHS FOUNDATION TRUST | D202: Primary Care | E202: 1 | F202: * | G202: * | H202: * | I202: * | J202: * | K202: * | L202: * | M202: *
... 97 more rows

Sheet BS (hidden)
B1: Sort | C1: Region (LO) Code | D1: Region (LO) name | E1: Trust code | F1: Trust name | G1: Category | I1: Sort Lists: | J1: Sort range… | K1: Sort range… | L1: Sort range… | M1: Reference Region Lists: | N1: Code… | O1: Name… | P1: Linked Region Lists: | Q1: Code… | R1: Name… | S1: Reference Lists: | T1: Code… | U1: Code… | V1: Name… | W1: Category… | X1: Trusts Linked Lists: | Y1: Code… | Z1: Name… | AA1: Categories Linked Lists: | AB1: Code… | AC1: Name… | AD1: Category…
A2: Region (LO) | B2: 1 | C2: 1 | D2: 1 | E2: - | F2: - | G2: - | J2: Region (LO) Code | K2: Region (LO) Code | L2: Region (LO) Code | N2: Q72 | O2: NHS England Yorkshire & Humber | Q2: IS1 | R2: Independent Sector Providers | T2: Q71 | U2: RRP | V2: BARNET, ENFIELD AND HARINGEY MENTAL HEALTH NHS TRUST | W2: Acute Services | Y2: AM5 | Z2: 2GETHER NHS FOUNDATION TRUST | AB2: AM5 | AC2: 2GETHER NHS FOUNDATION TRUST | AD2: Acute Services
A3: Trusts | B3: 1 | C3: 1 | D3: 1 | E3: 1 | F3: 1 | G3: - | J3: Region (Local Office) | K3: Trust Code | L3: Trust Code | N3: Q74 | O3: NHS England Cumbria & North East | Q3: Q71 | R3: NHS England Central Midlands | T3: Q71 | U3: RRP | V3: BARNET, ENFIELD AND HARINGEY MENTAL HEALTH NHS TRUST | W3: Child & Adolescent Mental Health Services | Y3: DE8 | Z3: ALDER HEY CHILDREN'S NHS FOUNDATION TRUST | AB3: DE8 | AC3: ALDER HEY CHILDREN'S NHS FOUNDATION TRUST | AD3: Child & Adolescent Mental Health Services
A4: Categories | B4: 1 | C4: 1 | D4: 1 | E4: 1 | F4: 1 | G4: 1 | J4: Total Responses | K4: Trust Name | L4: Trust Name | N4: Q75 | O4: NHS England Cheshire & Merseyside | Q4: Q72 | R4: NHS England Cheshire & Merseyside | T4: Q71 | U4: RRP | V4: BARNET, ENFIELD AND HARINGEY MENTAL HEALTH NHS TRUST | W4: Secondary Care Community Services | Y4: NDK | Z4: AVON AND WILTSHIRE MENTAL HEALTH PARTNERSHIP NHS TRUST | AB4: NDK | AC4: AVON AND WILTSHIRE MENTAL HEALTH PARTNERSHIP NHS TRUST | AD4: Mental Health Other
J5: Total Eligible | K5: Total Responses | L5: Category | N5: Q83 | O5: NHS England Greater Manchester | Q5: Q74 | R5: NHS England Cumbria & North East | T5: Q71 | U5: RRP | V5: BARNET, ENFIELD AND HARINGEY MENTAL HEALTH NHS TRUST | W5: Secure & Forensic Services | Y5: NMJ | Z5: BARNET, ENFIELD AND HARINGEY MENTAL HEALTH NHS TRUST | AB5: NMJ | AC5: BARNET, ENFIELD AND HARINGEY MENTAL HEALTH NHS TRUST | AD5: Primary Care
J6: Percentage Recommended | K6: Total Eligible | L6: Total Responses | N6: Q84 | O6: NHS England Lancashire | Q6: Q75 | R6: NHS England East | T6: Q71 | U6: RRP | V6: BARNET, ENFIELD AND HARINGEY MENTAL HEALTH NHS TRUST | W6: Specialist Services | Y6: NNF | Z6: BERKSHIRE HEALTHCARE NHS FOUNDATION TRUST | AB6: NNF | AC6: BERKSHIRE HEALTHCARE NHS FOUNDATION TRUST | AD6: Secondary Care Community Services
J7: Percentage Not Recommended | K7: Percentage Recommended | L7: Percentage Recommended | N7: Q76 | O7: NHS England North Midlands | Q7: Q76 | R7: NHS England Greater Manchester | T7: Q71 | U7: TAF | V7: CAMDEN AND ISLINGTON NHS FOUNDATION TRUST | W7: Acute Services | Y7: NQL | Z7: BIRMINGHAM AND SOLIHULL MENTAL HEALTH NHS FOUNDATION TRUST | AB7: NQL | AC7: BIRMINGHAM AND SOLIHULL MENTAL HEALTH NHS FOUNDATION TRUST | AD7: Secure & Forensic Services
J8: Extremely Likely | K8: Percentage Not Recommended | L8: Percentage Not Recommended | N8: Q77 | O8: NHS England West Midlands | Q8: Q77 | R8: NHS England Hampshire, Isle Of Wight & Thames Valley | T8: Q71 | U8: TAF | V8: CAMDEN AND ISLINGTON NHS FOUNDATION TRUST | W8: Primary Care | Y8: NR5 | Z8: BIRMINGHAM WOMEN'S AND CHILDREN'S NHS FOUNDATION TRUST | AB8: NR5 | AC8: BIRMINGHAM WOMEN'S AND CHILDREN'S NHS FOUNDATION TRUST | AD8: Specialist Services
J9: Likely | K9: Extremely Likely | L9: Extremely Likely | N9: Q78 | O9: NHS England Central Midlands | Q9: Q78 | R9: NHS England Kent, Surrey & Sussex | T9: Q71 | U9: TAF | V9: CAMDEN AND ISLINGTON NHS FOUNDATION TRUST | W9: Secondary Care Community Services | Y9: NV2 | Z9: BLACK COUNTRY PARTNERSHIP NHS FOUNDATION TRUST | AB9: NV2 | AC9: BLACK COUNTRY PARTNERSHIP NHS FOUNDATION TRUST
J10: Neither | K10: Likely | L10: Likely | N10: Q79 | O10: NHS England East | Q10: Q79 | R10: NHS England Lancashire | T10: Q71 | U10: TAF | V10: CAMDEN AND ISLINGTON NHS FOUNDATION TRUST | W10: Specialist Services | Y10: NWX | Z10: BLACKPOOL TEACHING HOSPITALS NHS FOUNDATION TRUST | AB10: NWX | AC10: BLACKPOOL TEACHING HOSPITALS NHS FOUNDATION TRUST
J11: Unlikely | K11: Neither | L11: Neither | N11: Q85 | O11: NHS England South West South | Q11: Q83 | R11: NHS England London | T11: Q71 | U11: RV3 | V11: CENTRAL AND NORTH WEST LONDON NHS FOUNDATION TRUST | W11: Acute Services | Y11: R1A | Z11: BRADFORD DISTRICT CARE NHS FOUNDATION TRUST | AB11: R1A | AC11: BRADFORD DISTRICT CARE NHS FOUNDATION TRUST
J12: Extremely Unlikely | K12: Unlikely | L12: Unlikely | N12: Q86 | O12: NHS England South West North | Q12: Q84 | R12: NHS England North Midlands | T12: Q71 | U12: RV3 | V12: CENTRAL AND NORTH WEST LONDON NHS FOUNDATION TRUST | W12: Child & Adolescent Mental Health Services | Y12: R1C | Z12: CAMBRIDGESHIRE AND PETERBOROUGH NHS FOUNDATION TRUST | AB12: R1C | AC12: CAMBRIDGESHIRE AND PETERBOROUGH NHS FOUNDATION TRUST
J13: Don't Know | K13: Extremely Unlikely | L13: Extremely Unlikely | N13: Q87 | O13: NHS England Hampshire, Isle Of Wight & Thames Valley | Q13: Q85 | R13: NHS England South West North | T13: Q71 | U13: RV3 | V13: CENTRAL AND NORTH WEST LONDON NHS FOUNDATION TRUST | W13: Mental Health Other | Y13: R1F | Z13: CAMDEN AND ISLINGTON NHS FOUNDATION TRUST | AB13: R1F | AC13: CAMDEN AND ISLINGTON NHS FOUNDATION TRUST
K14: Don't Know | L14: Don't Know | N14: Q88 | O14: NHS England Kent, Surrey & Sussex | Q14: Q86 | R14: NHS England South West South | T14: Q71 | U14: RV3 | V14: CENTRAL AND NORTH WEST LONDON NHS FOUNDATION TRUST | W14: Secondary Care Community Services | Y14: R1L | Z14: CENTRAL AND NORTH WEST LONDON NHS FOUNDATION TRUST | AB14: R1L | AC14: CENTRAL AND NORTH WEST LONDON NHS FOUNDATION TRUST
K15: SMS/Text / Smartphone App | N15: Q71 | O15: NHS England London | Q15: Q87 | R15: NHS England West Midlands | T15: Q71 | U15: RV3 | V15: CENTRAL AND NORTH WEST LONDON NHS FOUNDATION TRUST | W15: Specialist Services | Y15: RAL | Z15: CHESHIRE AND WIRRAL PARTNERSHIP NHS FOUNDATION TRUST | AB15: RAL | AC15: CHESHIRE AND WIRRAL PARTNERSHIP NHS FOUNDATION TRUST
K16: Electronic tablet/kiosk at point of discharge | N16: IS1 | O16: Independent Sector Providers | Q16: Q88 | R16: NHS England Yorkshire & Humber | T16: Q71 | U16: RWK | V16: EAST LONDON NHS FOUNDATION TRUST | W16: Acute Services | Y16: RAT | Z16: CITY HEALTH CARE PARTNERSHIP CIC | AB16: RAT | AC16: CITY HEALTH CARE PARTNERSHIP CIC
K17: Paper / postcard at point of discharge | T17: Q71 | U17: RWK | V17: EAST LONDON NHS FOUNDATION TRUST | W17: Child & Adolescent Mental Health Services | Y17: RBS | Z17: CORNWALL PARTNERSHIP NHS FOUNDATION TRUST | AB17: RBS | AC17: CORNWALL PARTNERSHIP NHS FOUNDATION TRUST
K18: Paper survey, sent to the patients home | T18: Q71 | U18: RWK | V18: EAST LONDON NHS FOUNDATION TRUST | W18: Mental Health Other | Y18: RCU | Z18: COVENTRY AND WARWICKSHIRE PARTNERSHIP NHS TRUST | AB18: RCU | AC18: COVENTRY AND WARWICKSHIRE PARTNERSHIP NHS TRUST
K19: Telephone survey once patient is home | T19: Q71 | U19: RWK | V19: EAST LONDON NHS FOUNDATION TRUST | W19: Primary Care | Y19: RDY | Z19: CUMBRIA PARTNERSHIP NHS FOUNDATION TRUST | AB19: RDY | AC19: CUMBRIA PARTNERSHIP NHS FOUNDATION TRUST
K20: Online survey once patient is home | T20: Q71 | U20: RWK | V20: EAST LONDON NHS FOUNDATION TRUST | W20: Secondary Care Community Services | Y20: RE9 | Z20: CYGNET HEALTH CARE LIMITED | AB20: RE9 | AC20: CYGNET HEALTH CARE LIMITED
K21: Other | T21: Q71 | U21: RWK | V21: EAST LONDON NHS FOUNDATION TRUST | W21: Specialist Services | Y21: RGD | Z21: DERBYSHIRE HEALTHCARE NHS FOUNDATION TRUST | AB21: RGD | AC21: DERBYSHIRE HEALTHCARE NHS FOUNDATION TRUST
T22: Q71 | U22: RAT | V22: NORTH EAST LONDON NHS FOUNDATION TRUST | W22: Acute Services | Y22: RH5 | Z22: DEVON PARTNERSHIP NHS TRUST | AB22: RH5 | AC22: DEVON PARTNERSHIP NHS TRUST
T23: Q71 | U23: RAT | V23: NORTH EAST LONDON NHS FOUNDATION TRUST | W23: Child & Adolescent Mental Health Services | Y23: RHA | Z23: DORSET HEALTHCARE UNIVERSITY NHS FOUNDATION TRUST | AB23: RHA | AC23: DORSET HEALTHCARE UNIVERSITY NHS FOUNDATION TRUST
T24: Q71 | U24: RAT | V24: NORTH EAST LONDON NHS FOUNDATION TRUST | W24: Mental Health Other | Y24: RJ8 | Z24: DUDLEY AND WALSALL MENTAL HEALTH PARTNERSHIP NHS TRUST | AB24: RJ8 | AC24: DUDLEY AND WALSALL MENTAL HEALTH PARTNERSHIP NHS TRUST
T25: Q71 | U25: RAT | V25: NORTH EAST LONDON NHS FOUNDATION TRUST | W25: Primary Care | Y25: RKL | Z25: EAST LONDON NHS FOUNDATION TRUST | AB25: RKL | AC25: EAST LONDON NHS FOUNDATION TRUST
T26: Q71 | U26: RAT | V26: NORTH EAST LONDON NHS FOUNDATION TRUST | W26: Secondary Care Community Services | Y26: RLY | Z26: ELYSIUM HEALTHCARE | AB26: RLY | AC26: ELYSIUM HEALTHCARE
T27: Q71 | U27: RAT | V27: NORTH EAST LONDON NHS FOUNDATION TRUST | W27: Specialist Services | Y27: RMY | Z27: ESSEX PARTNERSHIP UNIVERSITY NHS FOUNDATION TRUST | AB27: RMY | AC27: ESSEX PARTNERSHIP UNIVERSITY NHS FOUNDATION TRUST
T28: Q71 | U28: RPG | V28: OXLEAS NHS FOUNDATION TRUST | W28: Acute Services | Y28: RNK | Z28: GATESHEAD HEALTH NHS FOUNDATION TRUST | AB28: RNK | AC28: GATESHEAD HEALTH NHS FOUNDATION TRUST
T29: Q71 | U29: RPG | V29: OXLEAS NHS FOUNDATION TRUST | W29: Secondary Care Community Services | Y29: RNN | Z29: GREATER MANCHESTER MENTAL HEALTH NHS FOUNDATION TRUST | AB29: RNN | AC29: GREATER MANCHESTER MENTAL HEALTH NHS FOUNDATION TRUST
T30: Q71 | U30: RPG | V30: OXLEAS NHS FOUNDATION TRUST | W30: Secure & Forensic Services | Y30: RNU | Z30: HERE | AB30: RNU | AC30: HERE
T31: Q71 | U31: RPG | V31: OXLEAS NHS FOUNDATION TRUST | W31: Specialist Services | Y31: RP1 | Z31: HERTFORDSHIRE COMMUNITY NHS TRUST | AB31: RP1 | AC31: HERTFORDSHIRE COMMUNITY NHS TRUST
T32: Q71 | U32: RAL | V32: ROYAL FREE LONDON NHS FOUNDATION TRUST | W32: Child & Adolescent Mental Health Services | Y32: RP7 | Z32: HERTFORDSHIRE PARTNERSHIP UNIVERSITY NHS FOUNDATION TRUST | AB32: RP7 | AC32: HERTFORDSHIRE PARTNERSHIP UNIVERSITY NHS FOUNDATION TRUST
T33: Q71 | U33: RV5 | V33: SOUTH LONDON AND MAUDSLEY NHS FOUNDATION TRUST | W33: Acute Services | Y33: RPG | Z33: HUMBER TEACHING NHS FOUNDATION TRUST | AB33: RPG | AC33: HUMBER TEACHING NHS FOUNDATION TRUST
T34: Q71 | U34: RV5 | V34: SOUTH LONDON AND MAUDSLEY NHS FOUNDATION TRUST | W34: Child & Adolescent Mental Health Services | Y34: RQ3 | Z34: ISLE OF WIGHT NHS TRUST | AB34: RQ3 | AC34: ISLE OF WIGHT NHS TRUST
T35: Q71 | U35: RV5 | V35: SOUTH LONDON AND MAUDSLEY NHS FOUNDATION TRUST | W35: Primary Care | Y35: RQY | Z35: KENT AND MEDWAY NHS AND SOCIAL CARE PARTNERSHIP TRUST | AB35: RQY | AC35: KENT AND MEDWAY NHS AND SOCIAL CARE PARTNERSHIP TRUST
T36: Q71 | U36: RV5 | V36: SOUTH LONDON AND MAUDSLEY NHS FOUNDATION TRUST | W36: Secondary Care Community Services | Y36: RR7 | Z36: LANCASHIRE CARE NHS FOUNDATION TRUST | AB36: RR7 | AC36: LANCASHIRE CARE NHS FOUNDATION TRUST
T37: Q71 | U37: RV5 | V37: SOUTH LONDON AND MAUDSLEY NHS FOUNDATION TRUST | W37: Secure & Forensic Services | Y37: RRE | Z37: LEEDS AND YORK PARTNERSHIP NHS FOUNDATION TRUST | AB37: RRE | AC37: LEEDS AND YORK PARTNERSHIP NHS FOUNDATION TRUST
T38: Q71 | U38: RV5 | V38: SOUTH LONDON AND MAUDSLEY NHS FOUNDATION TRUST | W38: Specialist Services | Y38: RRP | Z38: LEICESTERSHIRE PARTNERSHIP NHS TRUST | AB38: RRP | AC38: LEICESTERSHIRE PARTNERSHIP NHS TRUST
T39: Q71 | U39: RQY | V39: SOUTH WEST LONDON AND ST GEORGE'S MENTAL HEALTH NHS TRUST | W39: Acute Services | Y39: RRV | Z39: LINCOLNSHIRE PARTNERSHIP NHS FOUNDATION TRUST | AB39: RRV | AC39: LINCOLNSHIRE PARTNERSHIP NHS FOUNDATION TRUST
T40: Q71 | U40: RQY | V40: SOUTH WEST LONDON AND ST GEORGE'S MENTAL HEALTH NHS TRUST | W40: Child & Adolescent Mental Health Services | Y40: RT1 | Z40: LIVEWELL SOUTHWEST | AB40: RT1 | AC40: LIVEWELL SOUTHWEST
T41: Q71 | U41: RQY | V41: SOUTH WEST LONDON AND ST GEORGE'S MENTAL HEALTH NHS TRUST | W41: Secondary Care Community Services | Y41: RT2 | Z41: MERSEY CARE NHS FOUNDATION TRUST | AB41: RT2 | AC41: MERSEY CARE NHS FOUNDATION TRUST
T42: Q71 | U42: RQY | V42: SOUTH WEST LONDON AND ST GEORGE'S MENTAL HEALTH NHS TRUST | W42: Secure & Forensic Services | Y42: RT5 | Z42: MIDLANDS PARTNERSHIP NHS FOUNDATION TRUST | AB42: RT5 | AC42: MIDLANDS PARTNERSHIP NHS FOUNDATION TRUST
T43: Q71 | U43: RNK | V43: TAVISTOCK AND PORTMAN NHS FOUNDATION TRUST | W43: Mental Health Other | Y43: RTF | Z43: NAVIGO HEALTH AND SOCIAL CARE CIC | AB43: RTF | AC43: NAVIGO HEALTH AND SOCIAL CARE CIC
T44: Q71 | U44: RRV | V44: UNIVERSITY COLLEGE LONDON HOSPITALS NHS FOUNDATION TRUST | W44: Primary Care | Y44: RTQ | Z44: NORFOLK AND SUFFOLK NHS FOUNDATION TRUST | AB44: RTQ | AC44: NORFOLK AND SUFFOLK NHS FOUNDATION TRUST
T45: Q71 | U45: RKL | V45: WEST LONDON NHS TRUST | W45: Acute Services | Y45: RTV | Z45: NORTH EAST LONDON NHS FOUNDATION TRUST | AB45: RTV | AC45: NORTH EAST LONDON NHS FOUNDATION TRUST
T46: Q71 | U46: RKL | V46: WEST LONDON NHS TRUST | W46: Mental Health Other | Y46: RV3 | Z46: NORTH STAFFORDSHIRE COMBINED HEALTHCARE NHS TRUST | AB46: RV3 | AC46: NORTH STAFFORDSHIRE COMBINED HEALTHCARE NHS TRUST
T47: Q71 | U47: RKL | V47: WEST LONDON NHS TRUST | W47: Primary Care | Y47: RV5 | Z47: NORTH WEST BOROUGHS HEALTHCARE NHS FOUNDATION TRUST | AB47: RV5 | AC47: NORTH WEST BOROUGHS HEALTHCARE NHS FOUNDATION TRUST
T48: Q71 | U48: RKL | V48: WEST LONDON NHS TRUST | W48: Secondary Care Community Services | Y48: RV9 | Z48: NORTHAMPTONSHIRE HEALTHCARE NHS FOUNDATION TRUST | AB48: RV9 | AC48: NORTHAMPTONSHIRE HEALTHCARE NHS FOUNDATION TRUST
T49: Q71 | U49: RKL | V49: WEST LONDON NHS TRUST | W49: Specialist Services | Y49: RVN | Z49: NORTHUMBERLAND, TYNE AND WEAR NHS FOUNDATION TRUST | AB49: RVN | AC49: NORTHUMBERLAND, TYNE AND WEAR NHS FOUNDATION TRUST
T50: Q72 | U50: TAD | V50: BRADFORD DISTRICT CARE NHS FOUNDATION TRUST | W50: Acute Services | Y50: RW1 | Z50: NORTHUMBRIA HEALTHCARE NHS FOUNDATION TRUST | AB50: RW1 | AC50: NORTHUMBRIA HEALTHCARE NHS FOUNDATION TRUST
T51: Q72 | U51: TAD | V51: BRADFORD DISTRICT CARE NHS FOUNDATION TRUST | W51: Child & Adolescent Mental Health Services | Y51: RW4 | Z51: NOTTINGHAMSHIRE HEALTHCARE NHS FOUNDATION TRUST | AB51: RW4 | AC51: NOTTINGHAMSHIRE HEALTHCARE NHS FOUNDATION TRUST
T52: Q72 | U52: TAD | V52: BRADFORD DISTRICT CARE NHS FOUNDATION TRUST | W52: Mental Health Other | Y52: RW5 | Z52: OUTLOOK SW LTD | AB52: RW5 | AC52: OUTLOOK SW LTD
T53: Q72 | U53: TAD | V53: BRADFORD DISTRICT CARE NHS FOUNDATION TRUST | W53: Secondary Care Community Services | Y53: RWK | Z53: OXFORD HEALTH NHS FOUNDATION TRUST | AB53: RWK | AC53: OXFORD HEALTH NHS FOUNDATION TRUST
T54: Q72 | U54: TAD | V54: BRADFORD DISTRICT CARE NHS FOUNDATION TRUST | W54: Specialist Services | Y54: RWR | Z54: OXLEAS NHS FOUNDATION TRUST | AB54: RWR | AC54: OXLEAS NHS FOUNDATION TRUST
T55: Q72 | U55: RV9 | V55: HUMBER TEACHING NHS FOUNDATION TRUST | W55: Acute Services | Y55: RWV | Z55: PENNINE CARE NHS FOUNDATION TRUST | AB55: RWV | AC55: PENNINE CARE NHS FOUNDATION TRUST
T56: Q72 | U56: RV9 | V56: HUMBER TEACHING NHS FOUNDATION TRUST | W56: Child & Adolescent Mental Health Services | Y56: RWX | Z56: ROTHERHAM DONCASTER AND SOUTH HUMBER NHS FOUNDATION TRUST | AB56: RWX | AC56: ROTHERHAM DONCASTER AND SOUTH HUMBER NHS FOUNDATION TRUST
T57: Q72 | U57: RV9 | V57: HUMBER TEACHING NHS FOUNDATION TRUST | W57: Primary Care | Y57: RX2 | Z57: ROYAL FREE LONDON NHS FOUNDATION TRUST | AB57: RX2 | AC57: ROYAL FREE LONDON NHS FOUNDATION TRUST
T58: Q72 | U58: RV9 | V58: HUMBER TEACHING NHS FOUNDATION TRUST | W58: Secondary Care Community Services | Y58: RX3 | Z58: SHEFFIELD CHILDREN'S NHS FOUNDATION TRUST | AB58: RX3 | AC58: SHEFFIELD CHILDREN'S NHS FOUNDATION TRUST
T59: Q72 | U59: RV9 | V59: HUMBER TEACHING NHS FOUNDATION TRUST | W59: Specialist Services | Y59: RX4 | Z59: SHEFFIELD HEALTH & SOCIAL CARE NHS FOUNDATION TRUST | AB59: RX4 | AC59: SHEFFIELD HEALTH & SOCIAL CARE NHS FOUNDATION TRUST
T60: Q72 | U60: RGD | V60: LEEDS AND YORK PARTNERSHIP NHS FOUNDATION TRUST | W60: Acute Services | Y60: RXA | Z60: SOLENT NHS TRUST | AB60: RXA | AC60: SOLENT NHS TRUST
T61: Q72 | U61: RGD | V61: LEEDS AND YORK PARTNERSHIP NHS FOUNDATION TRUST | W61: Mental Health Other | Y61: RXE | Z61: SOMERSET PARTNERSHIP NHS FOUNDATION TRUST | AB61: RXE | AC61: SOMERSET PARTNERSHIP NHS FOUNDATION TRUST
T62: Q72 | U62: RGD | V62: LEEDS AND YORK PARTNERSHIP NHS FOUNDATION TRUST | W62: Secondary Care Community Services | Y62: RXG | Z62: SOUTH LONDON AND MAUDSLEY NHS FOUNDATION TRUST | AB62: RXG | AC62: SOUTH LONDON AND MAUDSLEY NHS FOUNDATION TRUST
T63: Q72 | U63: RGD | V63: LEEDS AND YORK PARTNERSHIP NHS FOUNDATION TRUST | W63: Specialist Services | Y63: RXL | Z63: SOUTH TYNESIDE NHS FOUNDATION TRUST | AB63: RXL | AC63: SOUTH TYNESIDE NHS FOUNDATION TRUST
T64: Q72 | U64: RXE | V64: ROTHERHAM DONCASTER AND SOUTH HUMBER NHS FOUNDATION TRUST | W64: Acute Services | Y64: RXM | Z64: SOUTH WEST LONDON AND ST GEORGE'S MENTAL HEALTH NHS TRUST | AB64: RXM | AC64: SOUTH WEST LONDON AND ST GEORGE'S MENTAL HEALTH NHS TRUST
T65: Q72 | U65: RXE | V65: ROTHERHAM DONCASTER AND SOUTH HUMBER NHS FOUNDATION TRUST | W65: Child & Adolescent Mental Health Services | Y65: RXT | Z65: SOUTH WEST YORKSHIRE PARTNERSHIP NHS FOUNDATION TRUST | AB65: RXT | AC65: SOUTH WEST YORKSHIRE PARTNERSHIP NHS FOUNDATION TRUST
T66: Q72 | U66: RXE | V66: ROTHERHAM DONCASTER AND SOUTH HUMBER NHS FOUNDATION TRUST | W66: Primary Care | Y66: RXV | Z66: SOUTHERN HEALTH NHS FOUNDATION TRUST | AB66: RXV | AC66: SOUTHERN HEALTH NHS FOUNDATION TRUST
T67: Q72 | U67: RXE | V67: ROTHERHAM DONCASTER AND SOUTH HUMBER NHS FOUNDATION TRUST | W67: Secondary Care Community Services | Y67: RXX | Z67: SURREY AND BORDERS PARTNERSHIP NHS FOUNDATION TRUST | AB67: RXX | AC67: SURREY AND BORDERS PARTNERSHIP NHS FOUNDATION TRUST
T68: Q72 | U68: RXE | V68: ROTHERHAM DONCASTER AND SOUTH HUMBER NHS FOUNDATION TRUST | W68: Specialist Services | Y68: RXY | Z68: SUSSEX PARTNERSHIP NHS FOUNDATION TRUST | AB68: RXY | AC68: SUSSEX PARTNERSHIP NHS FOUNDATION TRUST
T69: Q72 | U69: RCU | V69: SHEFFIELD CHILDREN'S NHS FOUNDATION TRUST | W69: Acute Services | Y69: RY4 | Z69: TAVISTOCK AND PORTMAN NHS FOUNDATION TRUST | AB69: RY4 | AC69: TAVISTOCK AND PORTMAN NHS FOUNDATION TRUST
T70: Q72 | U70: RCU | V70: SHEFFIELD CHILDREN'S NHS FOUNDATION TRUST | W70: Child & Adolescent Mental Health Services | Y70: RYG | Z70: TEES, ESK AND WEAR VALLEYS NHS FOUNDATION TRUST | AB70: RYG | AC70: TEES, ESK AND WEAR VALLEYS NHS FOUNDATION TRUST
T71: Q72 | U71: TAH | V71: SHEFFIELD HEALTH & SOCIAL CARE NHS FOUNDATION TRUST | W71: Mental Health Other | Y71: RYK | Z71: THE HUNTERCOMBE GROUP | AB71: RYK | AC71: THE HUNTERCOMBE GROUP
T72: Q72 | U72: TAH | V72: SHEFFIELD HEALTH & SOCIAL CARE NHS FOUNDATION TRUST | W72: Primary Care | Y72: TAD | Z72: UNIVERSITY COLLEGE LONDON HOSPITALS NHS FOUNDATION TRUST | AB72: TAD | AC72: UNIVERSITY COLLEGE LONDON HOSPITALS NHS FOUNDATION TRUST
T73: Q72 | U73: TAH | V73: SHEFFIELD HEALTH & SOCIAL CARE NHS FOUNDATION TRUST | W73: Secondary Care Community Services | Y73: TAF | Z73: WEST LONDON NHS TRUST | AB73: TAF | AC73: WEST LONDON NHS TRUST
T74: Q72 | U74: TAH | V74: SHEFFIELD HEALTH & SOCIAL CARE NHS FOUNDATION TRUST | W74: Specialist Services | Y74: TAH | Z74: WORCESTERSHIRE HEALTH AND CARE NHS TRUST | AB74: TAH | AC74: WORCESTERSHIRE HEALTH AND CARE NHS TRUST
T75: Q72 | U75: RXG | V75: SOUTH WEST YORKSHIRE PARTNERSHIP NHS FOUNDATION TRUST | W75: Acute Services | Y75: TAJ | Z75: YARBOROUGH CLEE CARE LIMITED | AB75: TAJ | AC75: YARBOROUGH CLEE CARE LIMITED
T76: Q72 | U76: RXG | V76: SOUTH WEST YORKSHIRE PARTNERSHIP NHS FOUNDATION TRUST | W76: Child & Adolescent Mental Health Services
T77: Q72 | U77: RXG | V77: SOUTH WEST YORKSHIRE PARTNERSHIP NHS FOUNDATION TRUST | W77: Mental Health Other
T78: Q72 | U78: RXG | V78: SOUTH WEST YORKSHIRE PARTNERSHIP NHS FOUNDATION TRUST | W78: Primary Care
T79: Q72 | U79: RXG | V79: SOUTH WEST YORKSHIRE PARTNERSHIP NHS FOUNDATION TRUST | W79: Secondary Care Community Services
T80: Q72 | U80: RXG | V80: SOUTH WEST YORKSHIRE PARTNERSHIP NHS FOUNDATION TRUST | W80: Specialist Services
T81: Q74 | U81: RNN | V81: CUMBRIA PARTNERSHIP NHS FOUNDATION TRUST | W81: Acute Services
T82: Q74 | U82: RNN | V82: CUMBRIA PARTNERSHIP NHS FOUNDATION TRUST | W82: Primary Care
T83: Q74 | U83: RNN | V83: CUMBRIA PARTNERSHIP NHS FOUNDATION TRUST | W83: Secondary Care Community Services
T84: Q74 | U84: RR7 | V84: GATESHEAD HEALTH NHS FOUNDATION TRUST | W84: Secondary Care Community Services
T85: Q74 | U85: RX4 | V85: NORTHUMBERLAND, TYNE AND WEAR NHS FOUNDATION TRUST | W85: Acute Services
T86: Q74 | U86: RX4 | V86: NORTHUMBERLAND, TYNE AND WEAR NHS FOUNDATION TRUST | W86: Child & Adolescent Mental Health Services
T87: Q74 | U87: RX4 | V87: NORTHUMBERLAND, TYNE AND WEAR NHS FOUNDATION TRUST | W87: Mental Health Other
T88: Q74 | U88: RX4 | V88: NORTHUMBERLAND, TYNE AND WEAR NHS FOUNDATION TRUST | W88: Secondary Care Community Services
T89: Q74 | U89: RX4 | V89: NORTHUMBERLAND, TYNE AND WEAR NHS FOUNDATION TRUST | W89: Specialist Services
T90: Q74 | U90: RTF | V90: NORTHUMBRIA HEALTHCARE NHS FOUNDATION TRUST | W90: Primary Care
T91: Q74 | U91: RTF | V91: NORTHUMBRIA HEALTHCARE NHS FOUNDATION TRUST | W91: Secondary Care Community Services
T92: Q74 | U92: RE9 | V92: SOUTH TYNESIDE NHS FOUNDATION TRUST | W92: Child & Adolescent Mental Health Services
T93: Q74 | U93: RX3 | V93: TEES, ESK AND WEAR VALLEYS NHS FOUNDATION TRUST | W93: Acute Services
T94: Q74 | U94: RX3 | V94: TEES, ESK AND WEAR VALLEYS NHS FOUNDATION TRUST | W94: Child & Adolescent Mental Health Services
T95: Q74 | U95: RX3 | V95: TEES, ESK AND WEAR VALLEYS NHS FOUNDATION TRUST | W95: Mental Health Other
T96: Q74 | U96: RX3 | V96: TEES, ESK AND WEAR VALLEYS NHS FOUNDATION TRUST | W96: Primary Care
T97: Q74 | U97: RX3 | V97: TEES, ESK AND WEAR VALLEYS NHS FOUNDATION TRUST | W97: Secondary Care Community Services
T98: Q74 | U98: RX3 | V98: TEES, ESK AND WEAR VALLEYS NHS FOUNDATION TRUST | W98: Secure & Forensic Services
T99: Q74 | U99: RX3 | V99: TEES, ESK AND WEAR VALLEYS NHS FOUNDATION TRUST | W99: Specialist Services
T100: Q75 | U100: RBS | V100: ALDER HEY CHILDREN'S NHS FOUNDATION TRUST | W100: Child & Adolescent Mental Health Services
T101: Q75 | U101: RXA | V101: CHESHIRE AND WIRRAL PARTNERSHIP NHS FOUNDATION TRUST | W101: Acute Services
T102: Q75 | U102: RXA | V102: CHESHIRE AND WIRRAL PARTNERSHIP NHS FOUNDATION TRUST | W102: Child & Adolescent Mental Health Services
T103: Q75 | U103: RXA | V103: CHESHIRE AND WIRRAL PARTNERSHIP NHS FOUNDATION TRUST | W103: Mental Health Other
T104: Q75 | U104: RXA | V104: CHESHIRE AND WIRRAL PARTNERSHIP NHS FOUNDATION TRUST | W104: Primary Care
T105: Q75 | U105: RXA | V105: CHESHIRE AND WIRRAL PARTNERSHIP NHS FOUNDATION TRUST | W105: Secondary Care Community Services
T106: Q75 | U106: RXA | V106: CHESHIRE AND WIRRAL PARTNERSHIP NHS FOUNDATION TRUST | W106: Specialist Services
T107: Q75 | U107: RW4 | V107: MERSEY CARE NHS FOUNDATION TRUST | W107: Acute Services
T108: Q75 | U108: RW4 | V108: MERSEY CARE NHS FOUNDATION TRUST | W108: Primary Care
T109: Q75 | U109: RW4 | V109: MERSEY CARE NHS FOUNDATION TRUST | W109: Secondary Care Community Services
T110: Q75 | U110: RW4 | V110: MERSEY CARE NHS FOUNDATION TRUST | W110: Secure & Forensic Services
T111: Q75 | U111: RTV | V111: NORTH WEST BOROUGHS HEALTHCARE NHS FOUNDATION TRUST | W111: Acute Services
T112: Q75 | U112: RTV | V112: NORTH WEST BOROUGHS HEALTHCARE NHS FOUNDATION TRUST | W112: Primary Care
T113: Q75 | U113: RTV | V113: NORTH WEST BOROUGHS HEALTHCARE NHS FOUNDATION TRUST | W113: Secondary Care Community Services
T114: Q75 | U114: RTV | V114: NORTH WEST BOROUGHS HEALTHCARE NHS FOUNDATION TRUST | W114: Specialist Services
T115: Q76 | U115: RXM | V115: DERBYSHIRE HEALTHCARE NHS FOUNDATION TRUST | W115: Acute Services
T116: Q76 | U116: RXM | V116: DERBYSHIRE HEALTHCARE NHS FOUNDATION TRUST | W116: Primary Care
T117: Q76 | U117: RXM | V117: DERBYSHIRE HEALTHCARE NHS FOUNDATION TRUST | W117: Secondary Care Community Services
T118: Q76 | U118: RXM | V118: DERBYSHIRE HEALTHCARE NHS FOUNDATION TRUST | W118: Specialist Services
T119: Q76 | U119: RRE | V119: MIDLANDS PARTNERSHIP NHS FOUNDATION TRUST | W119: Acute Services
T120: Q76 | U120: RRE | V120: MIDLANDS PARTNERSHIP NHS FOUNDATION TRUST | W120: Child & Adolescent Mental Health Services
T121: Q76 | U121: RRE | V121: MIDLANDS PARTNERSHIP NHS FOUNDATION TRUST | W121: Mental Health Other
T122: Q76 | U122: RRE | V122: MIDLANDS PARTNERSHIP NHS FOUNDATION TRUST | W122: Primary Care
T123: Q76 | U123: RRE | V123: MIDLANDS PARTNERSHIP NHS FOUNDATION TRUST | W123: Secondary Care Community Services
T124: Q76 | U124: RRE | V124: MIDLANDS PARTNERSHIP NHS FOUNDATION TRUST | W124: Specialist Services
T125: Q76 | U125: RLY | V125: NORTH STAFFORDSHIRE COMBINED HEALTHCARE NHS TRUST | W125: Acute Services
T126: Q76 | U126: RLY | V126: NORTH STAFFORDSHIRE COMBINED HEALTHCARE NHS TRUST | W126: Child & Adolescent Mental Health Services
T127: Q76 | U127: RLY | V127: NORTH STAFFORDSHIRE COMBINED HEALTHCARE NHS TRUST | W127: Mental Health Other
T128: Q76 | U128: RLY | V128: NORTH STAFFORDSHIRE COMBINED HEALTHCARE NHS TRUST | W128: Secondary Care Community Services
T129: Q76 | U129: RHA | V129: NOTTINGHAMSHIRE HEALTHCARE NHS FOUNDATION TRUST | W129: Acute Services
T130: Q76 | U130: RHA | V130: NOTTINGHAMSHIRE HEALTHCARE NHS FOUNDATION TRUST | W130: Child & Adolescent Mental Health Services
T131: Q76 | U131: RHA | V131: NOTTINGHAMSHIRE HEALTHCARE NHS FOUNDATION TRUST | W131: Primary Care
T132: Q76 | U132: RHA | V132: NOTTINGHAMSHIRE HEALTHCARE NHS FOUNDATION TRUST | W132: Secondary Care Community Services
T133: Q76 | U133: RHA | V133: NOTTINGHAMSHIRE HEALTHCARE NHS FOUNDATION TRUST | W133: Secure & Forensic Services
T134: Q77 | U134: RXT | V134: BIRMINGHAM AND SOLIHULL MENTAL HEALTH NHS FOUNDATION TRUST | W134: Acute Services
T135: Q77 | U135: RXT | V135: BIRMINGHAM AND SOLIHULL MENTAL HEALTH NHS FOUNDATION TRUST | W135: Child & Adolescent Mental Health Services
T136: Q77 | U136: RXT | V136: BIRMINGHAM AND SOLIHULL MENTAL HEALTH NHS FOUNDATION TRUST | W136: Mental Health Other
T137: Q77 | U137: RXT | V137: BIRMINGHAM AND SOLIHULL MENTAL HEALTH NHS FOUNDATION TRUST | W137: Primary Care
T138: Q77 | U138: RXT | V138: BIRMINGHAM AND SOLIHULL MENTAL HEALTH NHS FOUNDATION TRUST | W138: Secondary Care Community Services
T139: Q77 | U139: RXT | V139: BIRMINGHAM AND SOLIHULL MENTAL HEALTH NHS FOUNDATION TRUST | W139: Secure & Forensic Services
T140: Q77 | U140: RXT | V140: BIRMINGHAM AND SOLIHULL MENTAL HEALTH NHS FOUNDATION TRUST | W140: Specialist Services
T141: Q77 | U141: RQ3 | V141: BIRMINGHAM WOMEN'S AND CHILDREN'S NHS FOUNDATION TRUST | W141: Child & Adolescent Mental Health Services
T142: Q77 | U142: TAJ | V142: BLACK COUNTRY PARTNERSHIP NHS FOUNDATION TRUST | W142: Mental Health Other
T143: Q77 | U143: RYG | V143: COVENTRY AND WARWICKSHIRE PARTNERSHIP NHS TRUST | W143: Acute Services
T144: Q77 | U144: RYG | V144: COVENTRY AND WARWICKSHIRE PARTNERSHIP NHS TRUST | W144: Child & Adolescent Mental Health Services
T145: Q77 | U145: RYG | V145: COVENTRY AND WARWICKSHIRE PARTNERSHIP NHS TRUST | W145: Mental Health Other
T146: Q77 | U146: RYG | V146: COVENTRY AND WARWICKSHIRE PARTNERSHIP NHS TRUST | W146: Primary Care
T147: Q77 | U147: RYG | V147: COVENTRY AND WARWICKSHIRE PARTNERSHIP NHS TRUST | W147: Secondary Care Community Services
T148: Q77 | U148: RYG | V148: COVENTRY AND WARWICKSHIRE PARTNERSHIP NHS TRUST | W148: Specialist Services
T149: Q77 | U149: RYK | V149: DUDLEY AND WALSALL MENTAL HEALTH PARTNERSHIP NHS TRUST | W149: Secondary Care Community Services
T150: Q77 | U150: R1A | V150: WORCESTERSHIRE HEALTH AND CARE NHS TRUST | W150: Acute Services
T151: Q77 | U151: R1A | V151: WORCESTERSHIRE HEALTH AND CARE NHS TRUST | W151: Child & Adolescent Mental Health Services
T152: Q77 | U152: R1A | V152: WORCESTERSHIRE HEALTH AND CARE NHS TRUST | W152: Primary Care
T153: Q77 | U153: R1A | V153: WORCESTERSHIRE HEALTH AND CARE NHS TRUST | W153: Secondary Care Community Services
T154: Q77 | U154: R1A | V154: WORCESTERSHIRE HEALTH AND CARE NHS TRUST | W154: Specialist Services
T155: Q78 | U155: RY4 | V155: HERTFORDSHIRE COMMUNITY NHS TRUST | W155: Child & Adolescent Mental Health Services
T156: Q78 | U156: RWR | V156: HERTFORDSHIRE PARTNERSHIP UNIVERSITY NHS FOUNDATION TRUST | W156: Acute Services
T157: Q78 | U157: RWR | V157: HERTFORDSHIRE PARTNERSHIP UNIVERSITY NHS FOUNDATION TRUST | W157: Child & Adolescent Mental Health Services
T158: Q78 | U158: RWR | V158: HERTFORDSHIRE PARTNERSHIP UNIVERSITY NHS FOUNDATION TRUST | W158: Primary Care
T159: Q78 | U159: RWR | V159: HERTFORDSHIRE PARTNERSHIP UNIVERSITY NHS FOUNDATION TRUST | W159: Secondary Care Community Services
T160: Q78 | U160: RWR | V160: HERTFORDSHIRE PARTNERSHIP UNIVERSITY NHS FOUNDATION TRUST | W160: Secure & Forensic Services
T161: Q78 | U161: RWR | V161: HERTFORDSHIRE PARTNERSHIP UNIVERSITY NHS FOUNDATION TRUST | W161: Specialist Services
T162: Q78 | U162: RT5 | V162: LEICESTERSHIRE PARTNERSHIP NHS TRUST | W162: Acute Services
T163: Q78 | U163: RT5 | V163: LEICESTERSHIRE PARTNERSHIP NHS TRUST | W163: Child & Adolescent Mental Health Services
T164: Q78 | U164: RT5 | V164: LEICESTERSHIRE PARTNERSHIP NHS TRUST | W164: Mental Health Other
T165: Q78 | U165: RT5 | V165: LEICESTERSHIRE PARTNERSHIP NHS TRUST | W165: Secondary Care Community Services
T166: Q78 | U166: RT5 | V166: LEICESTERSHIRE PARTNERSHIP NHS TRUST | W166: Specialist Services
T167: Q78 | U167: RP7 | V167: LINCOLNSHIRE PARTNERSHIP NHS FOUNDATION TRUST | W167: Acute Services
T168: Q78 | U168: RP7 | V168: LINCOLNSHIRE PARTNERSHIP NHS FOUNDATION TRUST | W168: Child & Adolescent Mental Health Services
T169: Q78 | U169: RP7 | V169: LINCOLNSHIRE PARTNERSHIP NHS FOUNDATION TRUST | W169: Mental Health Other
T170: Q78 | U170: RP7 | V170: LINCOLNSHIRE PARTNERSHIP NHS FOUNDATION TRUST | W170: Primary Care
T171: Q78 | U171: RP7 | V171: LINCOLNSHIRE PARTNERSHIP NHS FOUNDATION TRUST | W171: Secondary Care Community Services
T172: Q78 | U172: RP7 | V172: LINCOLNSHIRE PARTNERSHIP NHS FOUNDATION TRUST | W172: Secure & Forensic Services
T173: Q78 | U173: RP1 | V173: NORTHAMPTONSHIRE HEALTHCARE NHS FOUNDATION TRUST | W173: Acute Services
T174: Q78 | U174: RP1 | V174: NORTHAMPTONSHIRE HEALTHCARE NHS FOUNDATION TRUST | W174: Child & Adolescent Mental Health Services
T175: Q78 | U175: RP1 | V175: NORTHAMPTONSHIRE HEALTHCARE NHS FOUNDATION TRUST | W175: Primary Care
T176: Q78 | U176: RP1 | V176: NORTHAMPTONSHIRE HEALTHCARE NHS FOUNDATION TRUST | W176: Secondary Care Community Services
T177: Q78 | U177: RP1 | V177: NORTHAMPTONSHIRE HEALTHCARE NHS FOUNDATION TRUST | W177: Secure & Forensic Services
T178: Q78 | U178: RP1 | V178: NORTHAMPTONSHIRE HEALTHCARE NHS FOUNDATION TRUST | W178: Specialist Services
T179: Q79 | U179: RT1 | V179: CAMBRIDGESHIRE AND PETERBOROUGH NHS FOUNDATION TRUST | W179: Acute Services
T180: Q79 | U180: RT1 | V180: CAMBRIDGESHIRE AND PETERBOROUGH NHS FOUNDATION TRUST | W180: Child & Adolescent Mental Health Services
T181: Q79 | U181: RT1 | V181: CAMBRIDGESHIRE AND PETERBOROUGH NHS FOUNDATION TRUST | W181: Mental Health Other
T182: Q79 | U182: RT1 | V182: CAMBRIDGESHIRE AND PETERBOROUGH NHS FOUNDATION TRUST | W182: Primary Care
T183: Q79 | U183: RT1 | V183: CAMBRIDGESHIRE AND PETERBOROUGH NHS FOUNDATION TRUST | W183: Secondary Care Community Services
T184: Q79 | U184: RT1 | V184: CAMBRIDGESHIRE AND PETERBOROUGH NHS FOUNDATION TRUST | W184: Specialist Services
T185: Q79 | U185: R1L | V185: ESSEX PARTNERSHIP UNIVERSITY NHS FOUNDATION TRUST | W185: Acute Services
T186: Q79 | U186: R1L | V186: ESSEX PARTNERSHIP UNIVERSITY NHS FOUNDATION TRUST | W186: Child & Adolescent Mental Health Services
T187: Q79 | U187: R1L | V187: ESSEX PARTNERSHIP UNIVERSITY NHS FOUNDATION TRUST | W187: Secondary Care Community Services
T188: Q79 | U188: R1L | V188: ESSEX PARTNERSHIP UNIVERSITY NHS FOUNDATION TRUST | W188: Specialist Services
T189: Q79 | U189: RMY | V189: NORFOLK AND SUFFOLK NHS FOUNDATION TRUST | W189: Acute Services
T190: Q79 | U190: RMY | V190: NORFOLK AND SUFFOLK NHS FOUNDATION TRUST | W190: Child & Adolescent Mental Health Services
T191: Q79 | U191: RMY | V191: NORFOLK AND SUFFOLK NHS FOUNDATION TRUST | W191: Mental Health Other
T192: Q79 | U192: RMY | V192: NORFOLK AND SUFFOLK NHS FOUNDATION TRUST | W192: Primary Care
T193: Q79 | U193: RMY | V193: NORFOLK AND SUFFOLK NHS FOUNDATION TRUST | W193: Secondary Care Community Services
T194: Q79 | U194: RMY | V194: NORFOLK AND SUFFOLK NHS FOUNDATION TRUST | W194: Specialist Services
T195: Q83 | U195: RXV | V195: GREATER MANCHESTER MENTAL HEALTH NHS FOUNDATION TRUST | W195: Acute Services
T196: Q83 | U196: RXV | V196: GREATER MANCHESTER MENTAL HEALTH NHS FOUNDATION TRUST | W196: Primary Care
T197: Q83 | U197: RXV | V197: GREATER MANCHESTER MENTAL HEALTH NHS FOUNDATION TRUST | W197: Secondary Care Community Services
T198: Q83 | U198: RXV | V198: GREATER MANCHESTER MENTAL HEALTH NHS FOUNDATION TRUST | W198: Specialist Services
T199: Q83 | U199: RT2 | V199: PENNINE CARE NHS FOUNDATION TRUST | W199: Acute Services
T200: Q83 | U200: RT2 | V200: PENNINE CARE NHS FOUNDATION TRUST | W200: Child & Adolescent Mental Health Services
... 93 more rows
